Cogmind - Beta 17 @@@ ROGUE MODE // 2026.07.08 @ 22:38:55 Player: Artackni Result: Destroyed self via exploding Nuclear Reactor Performance ------------- Evolutions (6) 3000 Regions Visited (26) 5200 Robots Destroyed (740) 3700 Value Destroyed (28221) 28221 Prototype IDs (250) 5000 Alien Tech Used (0) 0 Bonus (37377) 37377 TOTAL SCORE: 82498 Bonus ------- Triggered High Security 500 High Alert Combat Kills 9259 Follower Combat Kills 2204 Prayed to X0-1V1 5000 Major X0-1V1 Interference 13950 Entered Garrisons 400 Aligned with FarCom 300 Met Data Miner 300 Used Data Conduit 3000 Acquired ECA 300 Met Warlord at Base 500 MAIN.C Attacked Warlord 500 Warlord Defense Kills 1412 Pursued by Intercept 1000 Friendly Fire -1248 Cogmind --------- Core Integrity 0/1250 Matter 253/1000 Energy 3/100 System Corruption 3% Temperature Cool (0) Movement Core (50) Location -4/Factory Parts ------- > --- POWER (2) -------- (None) > --- PROPULSION (6) --- (None) > --- UTILITY (3) ------ Advanced Salvage Targeting Computer > --- WEAPON (8) ------- (None) > --- INVENTORY (6) ---- Protomatter-130 Huge Storage Unit Long-range Tractor Beam Vortex Lance (26) GAL Module Peak State ------------ > --- POWER ------------ Cold Fusion Reactor Compact Particle Reactor > --- PROPULSION ------- Armored Medium Treads Armored Medium Treads Enhanced Armored Leg Armored Huge Wheel > --- UTILITY ---------- Experimental Cooling System Huge Storage Unit Advanced Salvage Targeting Computer Core Analyzer > --- WEAPON ----------- KE Penetrator Heavy Autocannon Heavy Autocannon RU-N14's Throwing Claymores v3 > --- INVENTORY -------- Protomatter Compact Particle Reactor Compact Matter Pod Encrypted Comm Array Advanced Recoil Stabilizer Centrium Medium Armor Plating Experimental Focal Shield Advanced Hardlight Generator Ghost Barrier EMDS Advanced KE Penetrator Linked Autogun Bore Cannon Proton Missile Launcher Heavy Missile Launcher Long-range Missile Launcher RU-N14's Throwing Claymores v3 RU-N14's Throwing Claymores v3 RU-N14's Throwing Claymores v3 CR-A16's Pointy Stick Vortex Lance Vortex Lance Self-destruct Interrupter GAL Module [Rating: 126] Favorites ----------- Power Cold Fusion Reactor Engine Improved Deuterium Engine Power Core Light Nuclear Core Reactor Cold Fusion Reactor Propulsion Compact Wheel Treads Armored Treads Leg Enhanced Armored Leg Wheel Compact Wheel Flight Unit Improved Flight Unit Utility Huge Storage Unit Device X0-1V1's Piety Tracker Storage Huge Storage Unit Processor Core Analyzer Hackware Hacking Suite Protection Improved Medium Armor Plating Weapon Gauss Rifle Energy Gun Wave Gun Energy Cannon Advanced Beam Cannon Ballistic Gun Gauss Rifle Ballistic Cannon Advanced Assault Cannon Launcher Heavy Missile Launcher Special Weapon RU-N14's Throwing Claymores v3 Impact Weapon Heavy Mace Slashing Weapon Axe Piercing Weapon Vortex Lance Build | -11 -10 -10 -10 -9 -8 -8 -8 -8 -7 -7 -7 -7 -7 -7 -6 -6 -6 -6 -6 -5 -5 -5 -5 -5 -4 -4 ------- Run | Yrd Mat Min Exi Min Mat Gar Mat Gar Fac Was Fac Low Low Zio Pro Fac Low Low Dat Pro Fac Upp Upp War Pro Fac Slots Evolved 12 | . . . . . 4 . . . 2 . . . . . . 2 . . . . 2 . . . . 2 Power . | . . . . . . . . . . . . . . . . . . . . . . . . . . . Propulsion 5 | . . . . . . . . . 1 . . . . . . 1 . . . . 1 . . . . 2 Utility 2 | . . . . . 2 . . . . . . . . . . . . . . . . . . . . . Weapon 5 | . . . . . 2 . . . 1 . . . . . . 1 . . . . 1 . . . . . Parts Attached 347 | 7 32 1 11 3 29 6 27 8 29 5 44 5 1 8 2 30 . 1 2 4 29 . 1 7 3 52 Power 34 | 1 4 . . 1 . 1 3 . 2 . 7 . . . . 7 . . . 1 2 . . . . 5 Engine 16 | 1 4 . . 1 . . 3 . 2 . 4 . . . . 1 . . . . . . . . . . Core 7 | . . . . . . 1 . . . . 3 . . . . 2 . . . . . . . . . 1 Reactor 11 | . . . . . . . . . . . . . . . . 4 . . . 1 2 . . . . 4 Propulsion 80 | 2 8 . 2 1 7 1 6 1 9 . 10 1 . . 2 6 . 1 1 . 5 . . . . 17 Treads 21 | . . . . . 5 1 . 1 3 . 2 1 . . 1 4 . 1 . . 2 . . . . . Leg 2 | . 1 . . . . . . . . . . . . . . . . . . . 1 . . . . . Wheel 56 | 2 6 . 2 1 2 . 6 . 6 . 8 . . . 1 2 . . 1 . 2 . . . . 17 Hover . | . . . . . . . . . . . . . . . . . . . . . . . . . . . Flight 1 | . 1 . . . . . . . . . . . . . . . . . . . . . . . . . Utility 90 | 2 7 . 6 . 7 1 11 3 9 2 13 3 . 3 . 7 . . . . 7 . . . 2 7 Device 25 | 1 4 . 2 . 1 . 4 . 1 . 2 1 . 1 . 2 . . . . 2 . . . 2 2 Storage 7 | 1 2 . 1 . . . . . 1 . 1 . . . . . . . . . . . . . . 1 Processor 9 | . . . . . . . . . 1 . 1 . . 1 . 2 . . . . 2 . . . . 2 Hackware 8 | . 1 . . . 2 . 3 . 1 . . . . . . . . . . . . . . . . 1 Protection 41 | . . . 3 . 4 1 4 3 5 2 9 2 . 1 . 3 . . . . 3 . . . . 1 Artifact . | . . . . . . . . . . . . . . . . . . . . . . . . . . . Weapon 143 | 2 13 1 3 1 15 3 7 4 9 3 14 1 1 5 . 10 . . 1 3 15 . 1 7 1 23 Energy Gun 7 | . 1 . . 1 . . . . . . . . . 1 . . . . . 1 2 . . 1 . . Energy Cannon 2 | . 1 . . . . . . . . . . . . . . . . . . . 1 . . . . . Ballistic Gun 96 | 2 6 . . . 14 2 6 4 8 . 10 . 1 2 . 9 . . 1 2 10 . . . 1 18 Ballistic Cannon 17 | . 3 1 2 . . . . . 1 . 4 . . 1 . 1 . . . . 1 . . 2 . 1 Launcher 12 | . 1 . 1 . 1 1 1 . . 3 . 1 . . . . . . . . 1 . 1 . . 1 Special Weapon 4 | . . . . . . . . . . . . . . . . . . . . . . . . 3 . 1 Impact Weapon . | . . . . . . . . . . . . . . . . . . . . . . . . . . . Slashing Weapon 2 | . 1 . . . . . . . . . . . . . . . . . . . . . . . . 1 Piercing Weapon 3 | . . . . . . . . . . . . . . 1 . . . . . . . . . 1 . 1 Special Melee Weapon . | . . . . . . . . . . . . . . . . . . . . . . . . . . . Unidentified Prototypes 28 | . 2 . 2 . 2 . 1 . 3 . 2 . . 1 . 5 . . . . 4 . . 4 . 2 Corrupted Parts 1 | . . . . . . . . . . . . . . . . . . . . . . . . . 1 . System Corruption 9 | . . . . . . . . . . . . . . . . . . . . . . . . . 9 . Parts Lost 166 | . 3 . 14 1 4 4 5 7 6 . 36 . . . 1 11 . 1 6 5 12 . 1 . . 49 Power 17 | . . . 1 . . 1 . . . . 5 . . . . . . 1 . 1 1 . . . . 7 Propulsion 58 | . 2 . 4 . 2 2 3 2 3 . 9 . . . 1 4 . . 2 2 3 . 1 . . 18 Utility 21 | . . . 3 . 1 . 1 2 . . 5 . . . . 3 . . 1 1 1 . . . . 3 Weapon 70 | . 1 . 6 1 1 1 1 3 3 . 17 . . . . 4 . . 3 1 7 . . . . 21 Highest Loss Streak 14 | . 1 . 7 1 2 3 1 4 2 . 8 . . . 1 3 . 1 6 7 4 . 1 . . 14 To Critical Strikes 9 | . . . 5 . . . . . . . 2 . . . . . . . . . . . . . . 2 Average Backups 20 | 3 12 20 11 12 22 20 23 23 23 24 22 21 22 22 21 20 21 20 20 14 21 20 20 20 20 19 Power 1 | . 1 2 2 2 1 1 1 1 1 1 . . . . . 1 2 1 1 . 1 1 . 1 1 . Propulsion 2 | 1 2 2 . . 2 3 4 3 2 3 3 3 3 3 2 3 4 4 4 2 2 4 3 . 1 . Utility 9 | . 3 8 4 9 9 10 11 14 15 14 12 11 12 10 10 7 6 6 5 4 6 5 5 6 5 9 Weapon 6 | . 4 7 4 1 8 4 4 3 3 5 5 3 4 6 7 6 8 8 7 6 10 9 8 11 12 9 Tool/Special . | . . . . . . . . . . . . . . . . . . . . . . . . . . . Unused Backups 112 | 2 22 . 6 . 12 2 12 1 7 1 14 . . 2 . 8 . . . . 5 . 1 7 2 8 Power 9 | . 1 . 3 . 1 . 1 . . . . . . . . 1 . . . . 1 . . . . 1 Propulsion 24 | 2 7 . . . 1 . . . 5 . 3 . . . . 2 . . . . . . . 3 . 1 Utility 54 | . 6 . 3 . 5 1 9 1 2 1 9 . . 1 . 2 . . . . 4 . 1 2 2 5 Weapon 23 | . 8 . . . 5 1 2 . . . 2 . . . . 2 . . . . . . . 2 . 1 Tool/Special 2 | . . . . . . . . . . . . . . 1 . 1 . . . . . . . . . . Average Slot Usage (%) 91 | . 88 100 83 68 98 99 93 99 96 93 91 72 82 83 89 89 100 99 97 89 90 94 93 90 83 81 Engine 6 | . 11 14 11 9 9 3 9 9 8 15 11 7 7 7 7 . . . . . . . . . . . Reactor 2 | . . . . . . . . . . . . . . . . 8 13 12 13 12 10 11 11 11 11 6 Treads 7 | . . . . . 8 14 9 7 13 . 4 6 7 2 3 16 13 13 11 10 7 5 5 11 11 5 Leg 1 | . . . . . . . . . . . . . . . . . 6 6 5 . 4 5 5 5 5 3 Wheel 17 | . 26 42 33 19 18 12 16 19 14 23 16 15 15 19 18 8 13 13 14 13 12 11 10 5 5 18 Device 2 | . 9 . . . 8 . 4 . . . . . . . . . . . . . . . . 5 3 2 Storage 7 | . 9 14 6 14 9 9 9 9 7 7 6 7 7 7 7 6 6 6 6 6 5 5 5 5 5 4 Processor 3 | . . . . . . . . . . . 5 7 7 7 7 6 6 6 6 6 7 11 11 11 11 9 Hackware 1 | . . . . . 1 . 4 5 2 . . . . . . . . . . . . . . . . 1 Protection 5 | . . . 5 . 7 17 3 11 10 8 7 3 7 7 7 5 6 6 6 5 3 5 4 . 1 . Ballistic Gun 26 | . 12 12 9 1 35 35 36 35 34 27 30 . 5 8 15 20 33 33 31 26 32 23 23 14 3 23 Ballistic Cannon 3 | . 8 12 13 14 . . . . 2 . 1 23 23 18 16 8 . . . . . 5 2 6 8 . Peak Build Rating 126 | 7 30 18 19 14 51 48 47 42 53 52 57 43 41 57 49 79 69 69 69 73 108 108 113 126 126 121 Average Rating 52 | 5 15 17 14 12 44 38 41 39 47 50 47 36 40 47 46 71 69 68 67 67 89 108 108 116 121 91 On Entrance 53 | . 7 18 18 10 14 46 36 38 40 51 50 31 39 41 46 49 69 69 69 60 69 100 108 113 126 116 Avg Prop Armor Cover (%) 8 | . 5 . . . 6 7 6 6 7 . 7 7 6 6 5 11 12 12 10 7 9 9 9 14 13 12 Naked Turns 8 | . . . 8 . . . . . . . . . . . . . . . . . . . . . . . Heaviest Build 196 | 14 97 93 90 54 108 107 127 121 138 144 138 118 114 123 124 137 131 131 131 132 148 144 144 190 196 149 Greatest Support 88 | 32 34 34 34 28 38 62 62 42 48 48 48 32 32 42 54 88 26 26 54 44 54 44 44 28 28 78 Greatest Overweight (x) 13 | . 3 2 3 4 8 4 10 3 12 2 13 3 3 3 12 13 5 5 5 2 8 3 4 6 6 13 Average Overweight (x) 3 | . 1 2 1 2 3 3 4 2 5 2 3 3 3 2 3 3 5 4 4 2 2 3 3 4 5 1 Largest Inventory Capacity 26 | 8 26 26 26 21 26 26 26 26 26 26 26 26 26 26 26 26 26 26 26 26 26 26 26 26 26 26 Average Capacity 24 | 7 15 26 15 21 24 26 25 26 26 26 25 26 26 26 26 26 26 26 26 26 26 26 26 26 26 24 Most Carried 26 | 8 26 26 26 15 26 26 26 26 26 26 26 25 25 26 26 26 26 26 26 21 26 25 26 26 26 26 Average Carried 23 | 3 13 25 13 14 24 24 25 25 25 25 23 23 25 25 25 24 26 25 25 18 25 25 25 25 25 23 Final Capacity 26 | 8 26 26 21 21 26 26 26 26 26 26 26 26 26 26 26 26 26 26 26 26 26 26 26 26 26 6 Final Carried 26 | 8 26 26 14 15 25 24 26 26 26 26 26 25 25 26 26 26 26 26 22 18 26 25 26 26 26 5 Class Distribution -------------------- 35% | Hauler-Gunner 21% | Hauler-Tank 12% | Scavenger-Executioner 10% | Mutant 6% | Scavenger-Tank 4% | Hauler-Executioner 4% | Hauler-Mutant Dominant Class ---------------- Mutant | -10/Materials Hauler-Mutant | -10/Mines Mutant | -10/Exiles Mutant | -9/Mines Hauler-Tank | -8/Materials Hauler-Tank | -8/Garrison Hauler-Gunner | -8/Materials Hauler-Tank | -8/Garrison Scavenger-Tank | -7/Factory Hauler-Tank | -7/Waste Hauler-Gunner | -7/Factory Hauler-Gunner | -7/Lower Caves Hauler-Gunner | -7/Lower Caves Hauler-Gunner | -7/Zion Hauler-Gunner | -6/Proximity Caves Hauler-Gunner | -6/Factory Hauler-Gunner | -6/Lower Caves Hauler-Gunner | -6/Lower Caves Hauler-Gunner | -6/Data Miner Hauler-Gunner | -5/Proximity Caves Scavenger-Executioner | -5/Factory Scavenger-Executioner | -5/Upper Caves Scavenger-Executioner | -5/Upper Caves Hauler-Executioner | -5/Warlord Hauler-Executioner | -4/Proximity Caves Scavenger-Executioner | -4/Factory Resources | -11 -10 -10 -10 -9 -8 -8 -8 -8 -7 -7 -7 -7 -7 -7 -6 -6 -6 -6 -6 -5 -5 -5 -5 -5 -4 -4 ----------- Run | Yrd Mat Min Exi Min Mat Gar Mat Gar Fac Was Fac Low Low Zio Pro Fac Low Low Dat Pro Fac Upp Upp War Pro Fac Matter Collected 30279 | 406 2616 91 824 120 2248 1163 3170 1213 1936 1193 4866 208 10 85 167 1806 . 126 . 456 2031 418 678 449 1018 2981 Remotely 40 | . . . . . . . 40 . . . . . . . . . . . . . . . . . . . Salvage Created 32590 | 225 1730 16 . 186 2351 1152 3084 806 1775 924 6402 261 . . 211 2578 . 123 99 382 3370 299 561 396 427 5232 Parts 1653 | 20 102 3 . 13 136 61 163 45 115 5 318 11 . . 3 134 . 9 4 11 185 8 16 9 10 272 Haulers Intercepted 27 | . 2 . . . 5 . 6 . 3 . 4 . . . . 3 . . . . 2 . . . . 2 Recyclers Shooed 18 | . 1 . . . 2 . 1 . . . . . . . . 3 . . . . 2 . . . . 9 Parts Field Recycled . | . . . . . . . . . . . . . . . . . . . . . . . . . . . Retrieved Matter . | . . . . . . . . . . . . . . . . . . . . . . . . . . . Parts Self-Destructed 39 | . . . . . . . . . . . . 5 . . 2 . . 10 . 6 . . 9 . 7 . Prevented 18 | . . . . . . . . . . . . 7 . . 1 . . . . . . . 6 . 4 . Parts Restored . | . . . . . . . . . . . . . . . . . . . . . . . . . . . Kills | -11 -10 -10 -10 -9 -8 -8 -8 -8 -7 -7 -7 -7 -7 -7 -6 -6 -6 -6 -6 -5 -5 -5 -5 -5 -4 -4 ------- Run | Yrd Mat Min Exi Min Mat Gar Mat Gar Fac Was Fac Low Low Zio Pro Fac Low Low Dat Pro Fac Upp Upp War Pro Fac Combat Hostiles Destroyed 530 | . 45 3 1 6 37 30 38 19 34 5 122 6 . . 5 34 . 5 1 5 41 . 9 9 8 67 Melee 4 | . . . . . . . . . . . . . . . . . . . . . . . . . . 4 Guns 336 | . 22 1 . 1 34 23 37 18 28 . 66 . . . . 12 . 5 1 5 37 . 5 1 . 40 Cannons 50 | . 14 2 1 5 . . . . 6 . 2 . . . . 9 . . . . . . . 4 4 3 AOE 121 | . 9 . . . 3 7 1 1 . 5 47 5 . . 3 8 . . . . 4 . 3 4 2 19 Classes Destroyed 24 | 3 8 . . . 3 1 1 . . 1 1 . . . 1 . . . . . . 1 . 1 1 2 Worker 55 | 1 4 . . . 2 . 4 . 3 . 17 . . . . 3 . . . . 5 . . . . 16 Builder 45 | . 3 . . . 4 . 3 . 4 . 9 . . . . 4 . . . . 4 . . . . 14 Tunneler 14 | 8 . . . . . . 2 . 1 . . . . . . 2 . . . . . . . . . 1 Hauler 27 | . 2 . . . 5 . 6 . 3 . 4 . . . . 3 . . . . 2 . . . . 2 Recycler 43 | 1 1 . . 1 5 . 9 . 1 . 8 . . . . 3 . . . . 5 . . . . 9 Mechanic 7 | . . . . . . . 2 . . . 4 . . . . . . . . . . . . . . 1 Operator 10 | . 5 . . . 1 . 2 . 1 . 1 . . . . . . . . . . . . . . . Drone 4 | . . . . . . . . . . . . . . . 2 . . . . . . . . . 2 . Watcher 5 | . 2 . . . . . . 1 . . 1 . . . . . . . . . . . . . . 1 Swarmer 104 | . 9 3 . 3 7 13 2 4 5 . 9 3 . . . 3 . 5 . . 13 . 5 . . 20 Saboteur 1 | . . . . . . . . . . . . . . . . . . . . . . . . . . 1 Grunt 218 | . 27 . . 2 16 13 23 10 12 . 62 3 . . 2 14 . . . 3 8 . 2 4 3 14 Brawler 17 | . 4 . . 1 1 . 2 . . . 6 . . . . . . . . . . . 1 . . 2 Duelist 22 | . . . . . 2 . 3 1 . . 13 . . . 1 1 . . . . . . . . . 1 Protector 10 | . . . . . 1 . . . . . 8 . . . . . . . . . . . . . . 1 Sentry 43 | . 5 . . . 9 4 7 . 4 . 7 . . . . 1 . . . . 4 . 1 . . 1 Demolisher 2 | . . . . . . . . . . . 1 . . . . . . . . . . . . 1 . . Specialist 1 | . . . . . . . . . . . . . . . . . . . . . . . . . . 1 Hunter 52 | . . . . . 1 . 1 . 10 . 6 . . . . 10 . . . . 3 . . 1 1 19 Programmer 38 | . . . . . . 1 . 4 3 . 11 . . . . 5 . . . . 8 . . . . 6 Behemoth 1 | . . . . . . . . . . . . . . . . . . . . . . . . . 1 . Compactor 5 | . . . . . . . . . . 5 . . . . . . . . . . . . . . . . Enhanced Grunt 1 | . . . . . . . . . . . . . . . . . . . 1 . . . . . . . Tracker 3 | . . . . . . . . . . . . . . . . . . . . . 3 . . . . . Combat Programmer 4 | . . . . . . . . . . . . . . . . . . . . . 3 . . . . 1 Executioner 3 | . . . . . . . . . . . . . . . . . . . . . . . . 3 . . Packrat 1 | . . . . . . . . . . . . . . . . . . . . . . . 1 . . . Samaritan 3 | . . . . . . . . . . . . . . . . . . . . . . 3 . . . . Wasp 1 | . . . . . . . . . . 1 . . . . . . . . . . . . . . . . Thug 2 | . . . . . . . . . . . . . . . . . . . . 2 . . . . . . Butcher 1 | . . . . . . . . . . . . . . . . . . . . . . . . 1 . . Guerrilla 1 | . . . . . . . . . . . . . . . . . . . . . . . . . 1 . Commander 1 | . . . . . . . . . . . . . . . . . . . . . 1 . . . . . Best Kill Streak 28 | 3 7 2 1 3 7 7 10 5 6 2 28 6 . . 3 6 . 4 1 3 11 . 5 3 4 21 Combat Bots Only 27 | . 7 2 1 3 5 7 3 5 5 2 27 6 . . 3 6 . 4 1 3 5 . 5 3 4 11 Max Kills in Single Turn 6 | 1 3 1 1 1 2 3 4 2 3 1 5 2 . . 1 3 . 1 1 2 3 1 1 2 1 6 Gunslinging 2 | . 1 . . . 1 1 1 1 1 . 2 . . . . . . . . 1 2 . . . . 1 Exploded 5 | . 2 . . . 2 3 1 1 . 1 5 2 . . 1 2 . . . . 2 . 1 2 1 4 Melee 1 | . . . . . . . . . . . . . . . . . . . . . . . . . . 1 Uniques/NPCs Destroyed 1 | . . . 1 . . . . . . . . . . . . . . . . . . . . . . . 8R-AWN (-10/Exiles) Combat | -11 -10 -10 -10 -9 -8 -8 -8 -8 -7 -7 -7 -7 -7 -7 -6 -6 -6 -6 -6 -5 -5 -5 -5 -5 -4 -4 -------- Run | Yrd Mat Min Exi Min Mat Gar Mat Gar Fac Was Fac Low Low Zio Pro Fac Low Low Dat Pro Fac Upp Upp War Pro Fac Hostile Shots Fired 2693 | . 137 20 83 24 117 99 112 82 218 . 563 7 . . 24 250 4 9 41 31 215 5 26 24 54 548 Missed 826 | . 37 6 20 8 40 25 38 23 54 . 213 4 . . 8 74 2 1 10 5 44 3 10 8 18 175 Hits 1867 | . 100 14 63 16 77 74 74 59 164 . 350 3 . . 16 176 2 8 31 26 171 2 16 16 36 373 Melee 33 | . . . . . 1 . . 1 . . 24 . . . 1 1 . . . . . . . . . 5 Projectile 1834 | . 100 14 63 16 76 74 74 58 164 . 326 3 . . 15 175 2 8 31 26 171 2 16 16 36 368 AOE 9 | . . . . . . . . . . . 3 . . . . . . . . . 1 . . 4 . 1 Critical Strikes 107 | . . 1 32 . 3 2 2 1 6 . 18 . . . 2 4 . . . . 6 2 1 . 2 25 Part Disruptions 4 | . . . . . . . . . 1 . . . . . . . . . 1 . 2 . . . . . Damage Taken 33972 | . 1418 107 1607 165 1565 1236 1368 871 2441 2 6383 49 . . 279 2809 44 193 1431 516 3282 102 285 536 692 6591 Core 4204 | . 244 39 406 64 296 197 56 111 108 . 677 . . . . 146 . 39 45 18 358 19 . 34 70 1277 Absorbed by Shields 37 | . 23 . . . . . . 14 . . . . . . . . . . . . . . . . . . Ignored by Resistances 1292 | . . . . . 5 32 . 61 34 . 120 3 . . 11 34 . . . . 278 15 . . 169 530 Regen/Repaired (Parts) 723 | . . . . . . . . . . 131 60 . . . . 185 . . . . . . . 347 . . Core Remaining (%) 64 | 100 . . . 6 . . . 81 . . . . . . 44 . . . . 73 . . . . 81 . Volleys Fired 1366 | 34 139 10 45 20 89 79 131 69 83 22 258 6 . . 10 81 . 6 7 12 77 9 15 23 20 121 Largest 8 | 2 3 2 2 2 4 4 4 4 5 2 5 1 . . 5 5 . 5 5 5 7 6 5 5 2 8 Hottest 252 | 40 99 58 66 73 121 104 100 108 154 78 150 39 . . 186 161 . 140 140 186 236 252 205 187 152 229 Shots Fired 4637 | 68 263 20 69 27 347 279 512 260 400 46 860 6 . . 22 265 . 30 19 54 380 44 58 44 24 540 Gun 4046 | 68 171 10 . 7 345 276 512 260 376 4 747 . . . 6 176 . 30 19 54 373 35 54 13 1 509 Cannon 358 | . 81 10 48 20 . . . . 24 . 39 . . . 9 61 . . . . 3 9 . 28 10 16 Launcher 217 | . 11 . 21 . 2 3 . . . 42 74 6 . . 7 28 . . . . 4 . 4 . 12 3 Special 16 | . . . . . . . . . . . . . . . . . . . . . . . . 3 1 12 Kinetic 4368 | 68 238 20 64 22 339 276 512 260 400 4 786 . . . 15 237 . 30 19 51 370 38 43 40 11 525 Thermal 51 | . 14 . . 5 5 . . . . . . . . . . . . . . 3 6 6 11 1 . . Explosive 110 | . 7 . 5 . 2 3 . . . 42 35 . . . . . . . . . . . . 3 1 12 Electromagnetic 108 | . 4 . . . 1 . . . . . 39 6 . . 7 28 . . . . 4 . 4 . 12 3 Robot Hit Streak 33 | 9 13 2 5 4 15 33 15 7 9 14 13 3 . . 5 12 . 7 17 29 27 6 4 4 4 19 Robot Miss Streak 14 | 6 5 3 2 3 8 3 6 8 9 1 14 1 . . 4 5 . 4 . 2 9 2 4 4 3 5 Penetration Max 1 | . . . . . 1 . 1 . 1 . 1 . . . . 1 . . . . 1 . 1 1 . 1 Secondary Targets 73 | . 2 . . . 6 6 7 6 6 . 9 . . . . . . 1 1 2 10 . 2 . . 15 Max Gunslinging Chain 2 | . 1 . . . 1 1 1 1 1 . 2 . . . . . . 1 1 1 2 . 1 . . 1 Shots Hit Robots 2622 | 35 151 8 44 17 198 164 269 112 229 37 504 3 . . 10 158 . 11 16 48 214 17 28 21 13 315 Core Hits 1679 | 16 83 2 13 7 95 72 118 40 125 19 555 8 . . 7 102 . 5 7 17 124 7 16 15 12 214 Critical Kills 11 | . 2 . . . . . . . 1 . 1 . . . . 2 . . . . 2 . . 1 . 2 Critical Parts Destroyed 23 | 1 1 . . . . . 3 1 1 . 2 . . . . 2 . . . . 1 . 3 . . 8 Critical Strikes 56 | 1 4 1 4 . . . 3 1 3 . 6 . . . . 6 . . . . 4 1 3 1 2 16 Burn 1 | . 1 . . . . . . . . . . . . . . . . . . . . . . . . . Destroy 35 | 1 3 . . . . . 3 1 2 . 3 . . . . 4 . . . . 4 . 3 1 . 10 Blast 16 | . . 1 4 . . . . . 1 . 3 . . . . 2 . . . . . 1 . . 2 2 Sever 4 | . . . . . . . . . . . . . . . . . . . . . . . . . . 4 Melee Attacks 10 | . . . . . . . . . . . . . . . . . . . . . . . . 1 . 9 Impact . | . . . . . . . . . . . . . . . . . . . . . . . . . . . Slashing 4 | . . . . . . . . . . . . . . . . . . . . . . . . . . 4 Piercing . | . . . . . . . . . . . . . . . . . . . . . . . . . . . Entropic 6 | . . . . . . . . . . . . . . . . . . . . . . . . 1 . 5 Sneak Attacks 1 | . . . . . . . . . . . . . . . . . . . . . . . . . . 1 Combat Hostiles . | . . . . . . . . . . . . . . . . . . . . . . . . . . . Follow-up Attacks . | . . . . . . . . . . . . . . . . . . . . . . . . . . . Damage Inflicted 79402 | 392 3494 146 1470 315 3511 2869 5101 1972 4097 4678 18037 375 . . 503 5071 . 205 323 999 6153 533 961 1652 1032 15513 Guns 45413 | 392 1388 60 . 50 3247 2417 4583 1972 3741 90 8331 . . . 42 2381 . 205 323 999 5639 418 703 136 . 8296 Cannons 5853 | . 1024 86 674 265 . . . . 356 . 549 . . . 116 1004 . . . . . 115 . 937 397 330 Explosions 26782 | . 1082 . 796 . 264 452 518 . . 4588 9157 375 . . 345 1677 . . . . 514 . 258 464 585 5707 Melee 610 | . . . . . . . . . . . . . . . . . . . . . . . . . . 610 Ramming 9 | . . . . . . . . . . . . . . . . 9 . . . . . . . . . . Kinetic 51952 | 392 2900 146 1417 279 3220 2417 4583 1972 4097 90 8880 . . . 158 3385 . 205 323 957 5540 374 521 1073 397 8626 Thermal 1585 | . 129 . . 36 11 . . . . . 408 51 . . . 167 . . . 42 148 159 182 . . 252 Explosive 17110 | . 414 . 53 . 264 452 518 . . 4588 5001 . . . . . . . . . . . . 464 130 5226 Electromagnetic 7401 | . 51 . . . 16 . . . . . 3748 324 . . 345 1510 . . . . 465 . 258 . 455 229 Impact . | . . . . . . . . . . . . . . . . . . . . . . . . . . . Slashing 862 | . . . . . . . . . . . . . . . . . . . . . . . . 115 50 697 Piercing . | . . . . . . . . . . . . . . . . . . . . . . . . . . . Entropic 483 | . . . . . . . . . . . . . . . . . . . . . . . . . . 483 Highest Corruption 35 | . 17 . . . . 9 13 9 17 17 35 1 1 1 . 2 . . . . 11 11 25 . 9 19 Average Corruption 12 | . 11 . . . . 9 10 2 17 17 20 1 1 1 . 2 . . . . 6 11 11 . 9 7 Corruption Purged . | . . . . . . . . . . . . . . . . . . . . . . . . . . . Corruption Blocked . | . . . . . . . . . . . . . . . . . . . . . . . . . . . Effects 487 | . 2 . . . . 55 84 4 13 42 169 3 . 2 . . . . . . 37 22 7 . 5 42 Message Errors 93 | . 1 . . . . 11 15 . 5 5 28 1 . 1 . . . . . . 7 6 1 . 1 11 Matter Fused 96 | . . . . . . 12 14 1 . 7 38 . . . . . . . . . 6 6 2 . 1 9 Heat Flow Errors 58 | . . . . . . 9 10 . 2 4 21 1 . . . . . . . . 5 2 1 . 1 2 Energy Discharges 45 | . . . . . . 5 10 1 2 5 17 . . . . . . . . . 3 1 1 . . . Parts Rejected 9 | . . . . . . . 2 . . 2 2 . . . . . . . . . . 1 . . . 2 Parts Fused 7 | . . . . . . . . 1 1 . 4 . . . . . . . . . . . . . . 1 Data Loss (minor) 57 | . 1 . . . . 2 8 . 1 7 17 1 . 1 . . . . . . 10 1 1 . . 7 Data Loss (major) 23 | . . . . . . 5 4 . 1 3 4 . . . . . . . . . 2 1 . . 1 2 Misfires 19 | . . . . . . 1 3 . . 4 5 . . . . . . . . . 1 1 . . 1 3 Alerts 12 | . . . . . . 1 2 . . . 6 . . . . . . . . . 1 2 . . . . Misdirections 8 | . . . . . . . 1 . . 4 2 . . . . . . . . . . . . . . 1 Weapon Failures 60 | . . . . . . 9 15 1 1 1 25 . . . . . . . . . 2 1 1 . . 4 Overload Shots . | . . . . . . . . . . . . . . . . . . . . . . . . . . . Overflow Damage 830 | . 45 2 24 . . . 68 . 12 . 149 . . . 8 76 . . . . 14 36 16 9 12 359 Projectiles 127 | . 11 2 . . . . . . 12 . . . . . . 22 . . . . . 36 . . . 44 Explosions 703 | . 34 . 24 . . . 68 . . . 149 . . . 8 54 . . . . 14 . 16 9 12 315 Melee . | . . . . . . . . . . . . . . . . . . . . . . . . . . . Knockbacks 32 | . 3 . 1 2 . . . . 2 . 3 . . . 1 7 . . . . . . . 6 1 6 Impact . | . . . . . . . . . . . . . . . . . . . . . . . . . . . Kinetic 31 | . 3 . 1 2 . . . . 2 . 3 . . . 1 7 . . . . . . . 6 1 5 Secondary 1 | . . . . . . . . . . . . . . . . . . . . . . . . . . 1 Self-Inflicted Damage 1167 | . 104 . 52 . . . 67 . . 2 458 9 . . 38 38 . . . . . . . . 71 328 Shots 41 | . 2 . 2 . . . 1 . . 1 14 2 . . 4 5 . . . . . . . . 6 4 Rammed 1 | . . . . . . . . . . . . . . . . 1 . . . . . . . . . . Targets Rammed 1 | . . . . . . . . . . . . . . . . 1 . . . . . . . . . . Kicked . | . . . . . . . . . . . . . . . . . . . . . . . . . . . Crushed . | . . . . . . . . . . . . . . . . . . . . . . . . . . . Highest Temperature 682 | . 327 36 102 96 414 517 547 478 442 261 378 158 . . 317 359 . 66 66 262 682 456 340 3 155 336 Average Temperature 95 | . 61 18 51 38 69 106 103 145 120 102 81 89 . . 193 78 . 27 32 93 90 152 143 3 47 103 Received Heat Transfer 5761 | . 471 . . 72 495 396 387 261 342 . 1704 . . . 90 423 9 . . 225 111 54 108 36 78 499 Effects 33 | . 2 . . . 3 3 5 10 3 . . . . . 2 . . . . . 3 . . . . 2 Shutdowns 6 | . . . . . 1 1 1 1 1 . . . . . . . . . . . 1 . . . . . Energy Bleed 4 | . . . . . 1 1 . . . . . . . . . . . . . . . . . . . 2 Interference 11 | . . . . . . . 3 6 . . . . . . 2 . . . . . . . . . . . Matter Decay 2 | . 1 . . . . . . 1 . . . . . . . . . . . . . . . . . . Short Circuit 4 | . 1 . . . . . 1 1 . . . . . . . . . . . . 1 . . . . . Damage (minor) 4 | . . . . . 1 . . 1 2 . . . . . . . . . . . . . . . . . Damage (core) 2 | . . . . . . 1 . . . . . . . . . . . . . . 1 . . . . . Siege Activations . | . . . . . . . . . . . . . . . . . . . . . . . . . . . Martial Activations . | . . . . . . . . . . . . . . . . . . . . . . . . . . . Shielding Activations . | . . . . . . . . . . . . . . . . . . . . . . . . . . . Robots Disrupted 2 | . . . . . . . . . . . 1 . . . . 1 . . . . . . . . . . Combat Hostiles 2 | . . . . . . . . . . . 1 . . . . 1 . . . . . . . . . . Robots Corrupted 18 | . . . . . . . . . . . 7 1 . . 2 5 . . . . . . 1 . 2 . Combat Hostiles 18 | . . . . . . . . . . . 7 1 . . 2 5 . . . . . . 1 . 2 . Parts Fried 59 | . . . . . . . . . . . 31 1 . . 3 16 . . . . 3 . 2 . 3 . Impact Corruptions . | . . . . . . . . . . . . . . . . . . . . . . . . . . . Robots Melted . | . . . . . . . . . . . . . . . . . . . . . . . . . . . Combat Hostiles . | . . . . . . . . . . . . . . . . . . . . . . . . . . . Parts Melted 9 | . 5 . . . . . . . . . . . . . . . . . . . . 1 1 . . 2 Heat Transferred 2349 | . 396 . . 75 25 . . . . . 450 50 . . . 250 . . . 74 248 222 259 . . 300 Parts Sabotaged . | . . . . . . . . . . . . . . . . . . . . . . . . . . . Parts Stolen . | . . . . . . . . . . . . . . . . . . . . . . . . . . . Parts Stripped . | . . . . . . . . . . . . . . . . . . . . . . . . . . . Power Chain Reactions 14 | . 1 . . . . . . . . . 7 1 . . . 4 . . . . 1 . . . . . Alert | -11 -10 -10 -10 -9 -8 -8 -8 -8 -7 -7 -7 -7 -7 -7 -6 -6 -6 -6 -6 -5 -5 -5 -5 -5 -4 -4 ------- Run | Yrd Mat Min Exi Min Mat Gar Mat Gar Fac Was Fac Low Low Zio Pro Fac Low Low Dat Pro Fac Upp Upp War Pro Fac Maximum Alert Level 5 | . 3 2 . . 3 4 4 5 3 1 5 . . . . 2 . . . . 2 . . . . 5 Low Security (%) 20 | 100 35 . . 100 50 . . . . 63 11 . . . . 41 . . . . 8 . . . . 28 Level 1 14 | . 6 56 . . 32 . . . . 36 2 . . . . 17 . . . . 84 . . . . 2 Level 2 18 | . 43 43 . . 16 24 10 4 40 . 10 . . . . 40 . . . . 6 . . . . 2 Level 3 26 | . 15 . . . . 43 71 36 59 . 21 . . . . . . . . . . . . . . 41 Level 4 12 | . . . . . . 32 17 54 . . 21 . . . . . . . . . . . . . . 17 Level 5 2 | . . . . . . . . 5 . . 8 . . . . . . . . . . . . . . 7 High Security 4 | . . . . . . . . . . . 24 . . . . . . . . . . . . . . . Max Security . | . . . . . . . . . . . . . . . . . . . . . . . . . . . Sterilizations 4 | . 1 . . . 1 . 1 . . . 1 . . . . . . . . . . . . . . . Peak Influence 3038 | 10 1075 437 . 60 705 1417 1266 1600 945 327 3038 . . . . 484 . . . . 442 . . . . 1766 Initial 840 | . . 408 . . 19 457 690 633 840 327 40 . . . . 150 . . . . . . . . . 25 Average 724 | 1 432 392 . 21 231 967 914 1218 702 194 1335 . . . . 266 . . . . 299 . . . . 757 Influence Increases 19965 | 50 1863 151 . 149 1815 1040 1886 1077 1048 133 4234 140 . . 95 1175 . 125 . 105 1250 . 190 192 160 3087 Destroy 0b10 Robot/C 11560 | . 1000 80 . 120 1060 620 1020 560 680 . 2600 120 . . 60 680 . 100 . 100 820 . 180 180 120 1460 Destroy 0b10 Robot/NC 1190 | 50 90 . . 5 115 15 150 5 65 . 265 . . . 10 75 . . . 5 80 . . . 10 250 Destroy Leader 2122 | . 138 20 . 20 300 30 254 40 184 . 480 20 . . 10 156 . 10 . . 184 . 10 . 30 236 Allied During Kill 641 | . 12 4 . . 188 13 109 27 . . 183 . . . . . . . . . 1 . . 12 . 92 Trap Triggered on 0b10 50 | . . . . . . 10 10 10 . . . . . . . 10 . . . . 10 . . . . . Successful Hack 117 | . 12 . . . 11 14 62 . . . 6 . . . . 4 . . . . 8 . . . . . Select Force Hacks 60 | . . . . . 60 . . . . . . . . . . . . . . . . . . . . . Disable Machine 1110 | . 60 . . . 45 30 225 30 45 . 285 . . . . 45 . . . . 45 . . . . 300 Anti-Garrison Action 800 | . . . . . . 250 . 350 . . . . . . . . . . . . . . . . . 200 Destroy Structure 1009 | . 70 2 . 4 21 28 26 25 14 133 115 . . . . 25 . . . . 72 . . . . 474 Advance Influence 150 | . . . . . . . . . . . . . . . . 150 . . . . . . . . . . Partial Spotted 90 | . 15 . . . . 30 . . 15 . 30 . . . . . . . . . . . . . . . Lose Combat Pursuer 630 | . 30 45 . . 15 . 30 30 45 . 270 . . . 15 30 . 15 . . 30 . . . . 75 Miscellaneous 436 | . 436 . . . . . . . . . . . . . . . . . . . . . . . . . Influence Decreases 18099 | 50 816 819 379 99 1161 327 2328 452 1712 1011 1254 1305 407 1466 95 708 314 130 148 105 810 401 147 256 138 1261 Entered New Map 7338 | . . 639 379 . 31 247 727 342 760 609 18 1125 357 1466 . . 174 30 148 . . 163 8 82 18 15 Time Decay 6966 | 50 686 120 . 89 690 . 731 . 592 342 681 180 50 . 95 598 140 90 . 85 620 238 129 154 120 486 Lost Part 1420 | . 30 . . 10 40 40 50 70 60 . 360 . . . . 110 . 10 . 20 120 . 10 . . 490 Lost Ally 875 | . 100 60 . . 100 40 70 40 . 60 195 . . . . . . . . . 70 . . 20 . 120 Purge Threat 1500 | . . . . . 300 . 750 . 300 . . . . . . . . . . . . . . . . 150 Squads Dispatched 147 | . 9 1 . . 14 . 15 . 19 . 45 . . . . 13 . . . . 12 . . . . 19 Investigation 29 | . 5 . . . 5 . 8 . 2 . 3 . . . . 2 . . . . 2 . . . . 2 Extermination 26 | . . . . . . . . . 4 . 10 . . . . 6 . . . . 3 . . . . 3 Reinforcement 38 | . 4 . . . 2 . 2 . 6 . 8 . . . . 4 . . . . 4 . . . . 8 Assault 31 | . . 1 . . 1 . 2 . 3 . 19 . . . . 1 . . . . . . . . . 4 Garrison 20 | . . . . . 6 . 3 . 4 . 5 . . . . . . . . . 1 . . . . 1 Intercept 3 | . . . . . . . . . . . . . . . . . . . . . 2 . . . . 1 Searches Triggered . | . . . . . . . . . . . . . . . . . . . . . . . . . . . Construction Impeded 11 | . . . . . . . . . 3 . 2 . . . . 2 . . . . . . . . . 4 Haulers Reinforced 8 | . . . . . . . . . 2 . 3 . . . . 1 . . . . . . . . . 2 Active Scanning Responses . | . . . . . . . . . . . . . . . . . . . . . . . . . . . Cargo Convoy Interrupts 2 | . . . . . . . . . . . . . . . . . . . . . 1 . . . . 1 Stealth | -11 -10 -10 -10 -9 -8 -8 -8 -8 -7 -7 -7 -7 -7 -7 -6 -6 -6 -6 -6 -5 -5 -5 -5 -5 -4 -4 --------- Run | Yrd Mat Min Exi Min Mat Gar Mat Gar Fac Was Fac Low Low Zio Pro Fac Low Low Dat Pro Fac Upp Upp War Pro Fac Distress Signals 21 | . 4 . . . 2 . 2 . 1 . 3 . . . . 2 . . . . 2 . . . . 5 Communications Jammed . | . . . . . . . . . . . . . . . . . . . . . . . . . . . Distress Signals . | . . . . . . . . . . . . . . . . . . . . . . . . . . . Times Spotted 818 | . 69 4 3 6 60 34 66 30 41 7 211 7 . . 5 50 5 7 4 6 55 3 8 22 9 106 Peak Tracking Total 13 | . 5 3 7 3 6 7 4 6 4 2 10 3 . . 3 7 7 4 4 3 5 3 5 7 3 13 Tactical Retreats 36 | . 2 2 4 . 1 . 1 2 3 . 12 . . . 1 1 . 1 . . 2 . . . . 4 Traps | -11 -10 -10 -10 -9 -8 -8 -8 -8 -7 -7 -7 -7 -7 -7 -6 -6 -6 -6 -6 -5 -5 -5 -5 -5 -4 -4 ------- Run | Yrd Mat Min Exi Min Mat Gar Mat Gar Fac Was Fac Low Low Zio Pro Fac Low Low Dat Pro Fac Upp Upp War Pro Fac Traps Triggered 30 | . 2 . . . 2 7 2 5 4 . 4 . . . . . . . . . 1 1 . . . 2 Indirectly 1 | . . . . . . . . . . . 1 . . . . . . . . . . . . . . . Trap Hack Attempts . | . . . . . . . . . . . . . . . . . . . . . . . . . . . Triggered . | . . . . . . . . . . . . . . . . . . . . . . . . . . . Disarmed . | . . . . . . . . . . . . . . . . . . . . . . . . . . . Reprogrammed . | . . . . . . . . . . . . . . . . . . . . . . . . . . . Reused 5 | . . . 2 . . 1 1 1 . . . . . . . . . . . . . . . . . . Traps Extracted . | . . . . . . . . . . . . . . . . . . . . . . . . . . . Installed 6 | . . . 2 . . 1 2 1 . . . . . . . . . . . . . . . . . . Triggered 5 | . . . . . . 1 1 1 . . . . . . . 1 . . . . 1 . . . . . Most Traps Carried 4 | . 4 4 4 . . 4 3 1 . . . 2 2 2 . . . . . . . . . . . . Machines | -11 -10 -10 -10 -9 -8 -8 -8 -8 -7 -7 -7 -7 -7 -7 -6 -6 -6 -6 -6 -5 -5 -5 -5 -5 -4 -4 ---------- Run | Yrd Mat Min Exi Min Mat Gar Mat Gar Fac Was Fac Low Low Zio Pro Fac Low Low Dat Pro Fac Upp Upp War Pro Fac Machines Disabled 101 | . 7 . 6 . 3 5 15 8 3 . 26 . . . . 3 . . . . 3 . 1 1 . 20 Max in Single Turn 6 | . 1 . 4 . 1 1 2 2 1 . 5 . . . . 1 . . . . 1 . 1 1 . 6 Garrison Access 2 | . . . . . . . . . 1 . . . . . . . . . . . . . . . . 1 Garrison Relay 7 | . . . . . . 3 . 4 . . . . . . . . . . . . . . . . . . Machines Repaired . | . . . . . . . . . . . . . . . . . . . . . . . . . . . Machines Dismantled . | . . . . . . . . . . . . . . . . . . . . . . . . . . . Machines Sabotaged . | . . . . . . . . . . . . . . . . . . . . . . . . . . . Overloaded Fab Kills . | . . . . . . . . . . . . . . . . . . . . . . . . . . . Hacking | -11 -10 -10 -10 -9 -8 -8 -8 -8 -7 -7 -7 -7 -7 -7 -6 -6 -6 -6 -6 -5 -5 -5 -5 -5 -4 -4 --------- Run | Yrd Mat Min Exi Min Mat Gar Mat Gar Fac Was Fac Low Low Zio Pro Fac Low Low Dat Pro Fac Upp Upp War Pro Fac Machines Accessed 58 | . 6 . 1 . 7 2 12 2 3 . 9 . . 1 . 3 . . 4 . 2 . . 1 . 5 Terminals 30 | . 5 . . . 3 2 8 2 2 . 3 . . . . . . . . . 2 . . . . 3 Fabricators 2 | . . . . . . . . . . . 1 . . . . 1 . . . . . . . . . . Repair Stations 4 | . . . . . . . 2 . . . 1 . . . . 1 . . . . . . . . . . Recycling Units 4 | . 1 . . . 2 . . . . . 1 . . . . . . . . . . . . . . . Scanalyzers 6 | . . . . . 1 . 1 . . . 2 . . . . 1 . . . . . . . . . 1 Garrison Access 5 | . . . . . 1 . 1 . 1 . 1 . . . . . . . . . . . . . . 1 Total Hacks 176 | . 16 . 1 . 16 3 39 7 12 . 19 . . 3 . 8 . . 26 . 4 . . 1 . 21 Successful 90 | . 8 . 1 . 10 1 16 1 3 . 9 . . 3 . 6 . . 26 . 1 . . 1 . 4 Failed 85 | . 8 . . . 6 2 22 6 9 . 10 . . . . 2 . . . . 3 . . . . 17 Catastrophic 19 | . . . . . 1 1 4 2 . . 3 . . . . . . . . . 1 . . . . 7 Database Lockouts 1 | . . . . . . . 1 . . . . . . . . . . . . . . . . . . . Manual 91 | . 19 . 1 . 7 . 26 1 7 . 7 . . . . 2 . . . . 4 . . . . 17 Terminals 86 | . 12 . . . 7 3 27 7 8 . 4 . . . . . . . . . 4 . . . . 14 Fabricators 6 | . . . . . . . . . . . 4 . . . . 2 . . . . . . . . . . Repair Stations 10 | . . . . . . . 7 . . . 1 . . . . 2 . . . . . . . . . . Recycling Units 9 | . 4 . . . 3 . . . . . 2 . . . . . . . . . . . . . . . Scanalyzers 21 | . . . . . 4 . 3 . . . 6 . . . . 4 . . . . . . . . . 4 Garrison Access 13 | . . . . . 2 . 2 . 4 . 2 . . . . . . . . . . . . . . 3 Terminal Hacks 47 | . . . 1 . 3 1 6 1 3 . . . . 3 . . . . 26 . 1 . . 1 . 1 Record 12 | . . . . . . . 1 . . . . . . . . . . . 11 . . . . . . . Part Schematic 11 | . . . . . . . . . . . . . . 3 . . . . 8 . . . . . . . Robot Schematic 4 | . . . . . . . . . . . . . . . . . . . 4 . . . . . . . Prototype ID Bank 3 | . . . . . . . . . . . . . . . . . . . 3 . . . . . . . Open Door 1 | . . . . . . . . . . . . . . . . . . . . . . . . 1 . . Branch Access Points 2 | . . . . . 1 . . . . . . . . . . . . . . . 1 . . . . . Alert Level 1 | . . . . . . . . . 1 . . . . . . . . . . . . . . . . . Unreport Threat 10 | . . . . . 2 . 5 . 2 . . . . . . . . . . . . . . . . 1 Garrison Registry 2 | . . . . . . 1 . 1 . . . . . . . . . . . . . . . . . . Proto ID Catalog 1 | . . . 1 . . . . . . . . . . . . . . . . . . . . . . . Fabricator Hacks 3 | . . . . . . . . . . . 1 . . . . 2 . . . . . . . . . . Load Schematic 2 | . . . . . . . . . . . 1 . . . . 1 . . . . . . . . . . Build 1 | . . . . . . . . . . . . . . . . 1 . . . . . . . . . . Repair Station Hacks 2 | . . . . . . . 2 . . . . . . . . . . . . . . . . . . . Scan Component 2 | . . . . . . . 2 . . . . . . . . . . . . . . . . . . . Recycling Unit Hacks 1 | . . . . . . . . . . . 1 . . . . . . . . . . . . . . . Retrieve Matter 1 | . . . . . . . . . . . 1 . . . . . . . . . . . . . . . Scanalyzer 17 | . . . . . 4 . 2 . . . 6 . . . . 3 . . . . . . . . . 2 Insert Component 3 | . . . . . 2 . . . . . 1 . . . . . . . . . . . . . . . Analyze 3 | . . . . . 2 . . . . . 1 . . . . . . . . . . . . . . . Retrieve Study 11 | . . . . . . . 2 . . . 4 . . . . 3 . . . . . . . . . 2 Garrison Access Hacks 2 | . . . . . 1 . 1 . . . . . . . . . . . . . . . . . . . Unlock Access 2 | . . . . . 1 . 1 . . . . . . . . . . . . . . . . . . . Unauthorized Hacks 18 | . 8 . . . 2 . 5 . . . 1 . . . . 1 . . . . . . . . . 1 Terminals 11 | . 6 . . . . . 5 . . . . . . . . . . . . . . . . . . . Assimilate 1 | . . . . . . . 1 . . . . . . . . . . . . . . . . . . . Botnet 4 | . . . . . . . 4 . . . . . . . . . . . . . . . . . . . Operators 1 | . 1 . . . . . . . . . . . . . . . . . . . . . . . . . Skim 4 | . 4 . . . . . . . . . . . . . . . . . . . . . . . . . Sabotage 1 | . 1 . . . . . . . . . . . . . . . . . . . . . . . . . Fabricators . | . . . . . . . . . . . . . . . . . . . . . . . . . . . Repair Stations 2 | . . . . . . . . . . . 1 . . . . 1 . . . . . . . . . . Patch 2 | . . . . . . . . . . . 1 . . . . 1 . . . . . . . . . . Recycling Units 4 | . 2 . . . 2 . . . . . . . . . . . . . . . . . . . . . Reject 1 | . 1 . . . . . . . . . . . . . . . . . . . . . . . . . Mask 1 | . 1 . . . . . . . . . . . . . . . . . . . . . . . . . Tunnel 2 | . . . . . 2 . . . . . . . . . . . . . . . . . . . . . Scanalyzers . | . . . . . . . . . . . . . . . . . . . . . . . . . . . Garrison Access 1 | . . . . . . . . . . . . . . . . . . . . . . . . . . 1 Jam 1 | . . . . . . . . . . . . . . . . . . . . . . . . . . 1 Data Cores Recovered 4 | . 1 . . . 1 . . . 1 . 1 . . . . . . . . . . . . . . . Used . | . . . . . . . . . . . . . . . . . . . . . . . . . . . Hacking Detections 35 | . 3 . . . 3 1 10 2 3 . 5 . . . . 2 . . . . 1 . . . . 5 Full Trace Events 17 | . 1 . . . 2 . 8 1 1 . 2 . . . . 1 . . . . . . . . . 1 Feedback Events 3 | . . . . . . . 2 1 . . . . . . . . . . . . . . . . . . Corruption 2 | . . . . . . . 2 . . . . . . . . . . . . . . . . . . . Hackware Fried 1 | . . . . . . . . 1 . . . . . . . . . . . . . . . . . . Feedback Blocked 1 | . . . . . . . 1 . . . . . . . . . . . . . . . . . . . Robot Schematics Acquired 4 | . . . . . . . . . . . . . . . . . . . 4 . . . . . . . Robots Built . | . . . . . . . . . . . . . . . . . . . . . . . . . . . Authchips . | . . . . . . . . . . . . . . . . . . . . . . . . . . . Time . | . . . . . . . . . . . . . . . . . . . . . . . . . . . Total Robot Build Rating . | . . . . . . . . . . . . . . . . . . . . . . . . . . . Part Schematics Acquired 14 | . . . . . 2 . . . . . 1 . . 3 . . . . 8 . . . . . . . Parts Built . | . . . . . . . . . . . . . . . . . . . . . . . . . . . Authchips . | . . . . . . . . . . . . . . . . . . . . . . . . . . . Time 106 | . . . . . . . . . . . . . . . . 106 . . . . . . . . . . Total Part Build Rating . | . . . . . . . . . . . . . . . . . . . . . . . . . . . Part Studies Acquired 11 | . . . . . . . 2 . . . 4 . . . . 3 . . . . . . . . . 2 Parts Repaired . | . . . . . . . . . . . . . . . . . . . . . . . . . . . Time . | . . . . . . . . . . . . . . . . . . . . . . . . . . . Parts Recycled . | . . . . . . . . . . . . . . . . . . . . . . . . . . . Recycled Matter . | . . . . . . . . . . . . . . . . . . . . . . . . . . . Retrieved Matter 67 | . . . . . . . . . . . 67 . . . . . . . . . . . . . . . Retrieved Components . | . . . . . . . . . . . . . . . . . . . . . . . . . . . Parts Scanalyzed 3 | . . . . . 2 . . . . . 1 . . . . . . . . . . . . . . . Part Schematics Acquired 3 | . . . . . 2 . . . . . 1 . . . . . . . . . . . . . . . Parts Damaged . | . . . . . . . . . . . . . . . . . . . . . . . . . . . Bothacking | -11 -10 -10 -10 -9 -8 -8 -8 -8 -7 -7 -7 -7 -7 -7 -6 -6 -6 -6 -6 -5 -5 -5 -5 -5 -4 -4 ------------ Run | Yrd Mat Min Exi Min Mat Gar Mat Gar Fac Was Fac Low Low Zio Pro Fac Low Low Dat Pro Fac Upp Upp War Pro Fac Used RIF Installer . | . . . . . . . . . . . . . . . . . . . . . . . . . . . Robots Hacked . | . . . . . . . . . . . . . . . . . . . . . . . . . . . Non-combat . | . . . . . . . . . . . . . . . . . . . . . . . . . . . Combat . | . . . . . . . . . . . . . . . . . . . . . . . . . . . Robot Hacks Applied . | . . . . . . . . . . . . . . . . . . . . . . . . . . . Relay Couplers Released 38 | . . . . . . 13 . 21 . . 4 . . . . . . . . . . . . . . . Machine Destruction 30 | . . . . . . 13 . 17 . . . . . . . . . . . . . . . . . . Programmers 8 | . . . . . . . . 4 . . 4 . . . . . . . . . . . . . . . Fabnet Peak Effective % . | . . . . . . . . . . . . . . . . . . . . . . . . . . . Robots Rewired 1 | . . . . . . . . . . . . . . . . . . . . . . . 1 . . . Allies Hacked 3 | . . . . . . . . . . . 2 . . . . . . . . . 1 . . . . . Hacks Repelled . | . . . . . . . . . . . . . . . . . . . . . . . . . . . Allies | -11 -10 -10 -10 -9 -8 -8 -8 -8 -7 -7 -7 -7 -7 -7 -6 -6 -6 -6 -6 -5 -5 -5 -5 -5 -4 -4 -------- Run | Yrd Mat Min Exi Min Mat Gar Mat Gar Fac Was Fac Low Low Zio Pro Fac Low Low Dat Pro Fac Upp Upp War Pro Fac Total Allies 69 | . 6 4 . . 5 3 4 1 . 22 10 . . . . . . . . . 5 . 1 . . 8 Largest Group 19 | . 3 3 . . 5 3 4 2 . 19 16 . . . . . . . . . 3 . 1 1 . 4 Highest-Rated Group 465 | . 24 31 . . 105 15 84 57 . 465 423 . . . . . . . . . 175 . 30 30 . 224 Highest-Rated Ally 160 | . 14 31 . . 21 5 21 57 . 35 79 . . . . . . . . . 160 . 30 30 . 56 Initial Warlord ECA Mod 18 | . . . . . . . 9 9 18 18 18 18 18 18 17 17 17 17 17 16 16 16 16 16 15 15 Total Orders 1 | . . . . . . . 1 . . . . . . . . . . . . . . . . . . . RETURN 1 | . . . . . . . 1 . . . . . . . . . . . . . . . . . . . Ally Attacks 503 | . 59 16 . . 102 20 57 25 . 19 166 . . . . . . . . . 4 . . . . 35 Total Damage 8830 | . 578 98 . . 2240 86 972 561 . 442 2489 . . . . . . . . . 144 . . . . 1220 Kills 94 | . 5 1 . . 22 1 15 9 . 3 26 . . . . . . . . . . . . . . 12 Allies Corrupted 3 | . . . . . . . . . . . 1 . . . . . . . . . . . . . . 2 Allies Melted 2 | . . . . . . . . . . . . . . . . . . . . . 2 . . . . . X0-1V1 Amusement Gains 574 | . 103 . 60 . 81 . 15 . 5 . 24 . . . . 20 . . 95 . 20 30 . 40 . 81 Good Acts 259 | . 75 3 . . 18 8 13 13 8 14 35 . . . 2 9 2 . . 2 14 5 5 4 3 26 Bad Acts 124 | . 46 . . 1 2 6 . 5 15 . 16 . . . 4 2 . 1 . 3 6 . 1 2 1 13 Intel | -11 -10 -10 -10 -9 -8 -8 -8 -8 -7 -7 -7 -7 -7 -7 -6 -6 -6 -6 -6 -5 -5 -5 -5 -5 -4 -4 ------- Run | Yrd Mat Min Exi Min Mat Gar Mat Gar Fac Was Fac Low Low Zio Pro Fac Low Low Dat Pro Fac Upp Upp War Pro Fac Active Infowar (turns) 1318 | 55 685 . . . . . . . . . . . . . . . . . . . . . . . 64 514 IFF 252 | . . . . . . . . . . . . . . . . . . . . . . . . . 64 188 Seismic 1066 | 55 685 . . . . . . . . . . . . . . . . . . . . . . . . 326 Robot Analysis Total 154 | . . . . . . . . . . . . . . . . . . . 154 . . . . . . . Derelict Logs Recovered 13 | . . 2 . . . . . . . . . . 1 2 3 . 1 . . 2 . 1 . . 1 . Drone Launches 5 | . . . . . . . 5 . . . . . . . . . . . . . . . . . . . Drone Recoveries 2 | . . . . . . . 2 . . . . . . . . . . . . . . . . . . . Exploration | -11 -10 -10 -10 -9 -8 -8 -8 -8 -7 -7 -7 -7 -7 -7 -6 -6 -6 -6 -6 -5 -5 -5 -5 -5 -4 -4 ------------- Run | Yrd Mat Min Exi Min Mat Gar Mat Gar Fac Was Fac Low Low Zio Pro Fac Low Low Dat Pro Fac Upp Upp War Pro Fac Turns Passed 34188 | 286 2903 249 1259 231 3008 1769 3602 1333 1868 770 5295 367 106 1323 391 1915 293 197 166 466 2282 505 404 1011 379 1810 Spaces Moved 20696 | 176 1776 177 982 141 1813 873 2117 838 971 539 3010 254 78 1069 277 956 190 112 94 344 1488 350 244 563 181 1083 Core 311 | 9 . . 15 . . . . . . . 196 . . . . . . . . . . . . . . 91 Treads 318 | . . . . . . 189 24 . . . . . . . . 105 . . . . . . . . . . Legs 15 | . 15 . . . . . . . . . . . . . . . . . . . . . . . . . Wheels 20052 | 167 1761 177 967 141 1813 684 2093 838 971 539 2814 254 78 1069 277 851 190 112 94 344 1488 350 244 563 181 992 Hover . | . . . . . . . . . . . . . . . . . . . . . . . . . . . Flight . | . . . . . . . . . . . . . . . . . . . . . . . . . . . Fastest Speed 50 | 50 86 116 50 110 105 145 113 113 120 120 50 135 135 113 113 116 155 140 113 120 113 135 135 150 165 50 Average Speed 133 | 97 108 116 105 125 139 165 146 132 152 120 136 135 135 120 128 163 155 154 145 120 123 135 136 162 176 105 Slowest Speed 317 | 100 260 116 135 150 210 241 317 135 250 120 265 135 135 135 250 265 155 155 155 120 210 135 150 180 180 265 Overloaded Moves . | . . . . . . . . . . . . . . . . . . . . . . . . . . . Propulsion Burnouts . | . . . . . . . . . . . . . . . . . . . . . . . . . . . Robots Hopped . | . . . . . . . . . . . . . . . . . . . . . . . . . . . Potential Cave-ins 2 | . 2 . . . . . . . . . . . . . . . . . . . . . . . . . Cave-ins Triggered 1 | . 1 . . . . . . . . . . . . . . . . . . . . . . . . . Exploration Rate (%) 53 | 5 98 33 74 38 88 65 95 83 21 94 65 44 16 85 51 21 48 24 78 56 21 45 51 75 37 37 Regions Visited 26 Branch Regions 15 Pre-discovered Areas 37 | . . 1 . . 2 . . . . . . 1 1 1 . . . . 31 . . . . . . . Known Exits Taken 11 | . 1 . . . 1 . 1 . . . 1 . . . 1 1 . . . 1 1 1 1 . 1 . Unknown Exits Taken 11 | 1 . 1 1 1 . . . . . . . 1 1 1 . . 1 1 1 . . . . 1 . . Scrap Searched 12 | . . . . 1 . . . . . . . 1 1 2 1 . 1 . . 1 . 2 1 . 1 . Spaces Dug 6 | . . . . . . . . . . . . . . . . . . . . . 3 1 . . . 2 Terrain Destroyed 1066 | . 62 2 88 4 11 16 18 . 7 296 127 7 . . 3 22 . 1 . 1 37 18 5 43 25 273 Melee . | . . . . . . . . . . . . . . . . . . . . . . . . . . . Projectile 202 | . 5 2 6 4 4 1 . . 7 . 6 . . . 3 10 . 1 . 1 32 18 4 3 6 89 AOE 859 | . 57 . 82 . 7 15 18 . . 296 121 7 . . . 12 . . . . 2 . . 40 19 183 Terrain Rammed . | . . . . . . . . . . . . . . . . . . . . . . . . . . . Walls Destroyed . | . . . . . . . . . . . . . . . . . . . . . . . . . . . Machines Disabled . | . . . . . . . . . . . . . . . . . . . . . . . . . . . Actions | -11 -10 -10 -10 -9 -8 -8 -8 -8 -7 -7 -7 -7 -7 -7 -6 -6 -6 -6 -6 -5 -5 -5 -5 -5 -4 -4 --------- Run | Yrd Mat Min Exi Min Mat Gar Mat Gar Fac Was Fac Low Low Zio Pro Fac Low Low Dat Pro Fac Upp Upp War Pro Fac Total 24682 | 230 2512 201 1144 166 2098 1046 2440 986 1190 608 3699 271 78 1107 295 1149 189 119 111 364 1735 360 285 627 215 1457 Wait 1341 | . 466 10 34 . 108 3 65 25 40 31 291 1 . . 1 26 . . 8 1 87 . 7 7 . 130 Move 20668 | 175 1774 176 981 140 1812 870 2116 837 971 538 3009 253 77 1068 276 955 189 111 93 343 1487 349 243 562 180 1083 Hop . | . . . . . . . . . . . . . . . . . . . . . . . . . . . Pick Up 323 | 11 47 1 30 2 27 13 35 9 19 3 34 4 . 12 3 17 . . . 1 23 . 8 8 4 12 Fast Attach 185 | 7 13 . 9 3 12 1 18 1 8 4 23 . 1 2 . 16 . . . 2 18 1 1 5 1 39 Attach 143 | . 10 . 10 1 4 5 9 7 9 1 25 3 . 6 2 9 . 1 3 5 11 1 . 1 1 19 Detach 65 | . 7 . 5 . 4 3 7 1 6 1 2 2 . 6 . 5 . . . . 6 . . . . 10 Swap 167 | . 15 2 1 . 16 6 17 2 19 5 29 2 . 3 2 14 . 1 . . 6 . 2 6 5 14 Drop 312 | 3 40 2 27 . 26 11 40 3 27 3 28 . . 10 1 25 . . . . 20 . 8 14 4 20 Fire 1366 | 34 139 10 45 20 89 79 131 69 83 22 258 6 . . 10 81 . 6 7 12 77 9 15 23 20 121 Melee 10 | . . . . . . . . . . . . . . . . . . . . . . . . 1 . 9 Ram 1 | . . . . . . . . . . . . . . . . 1 . . . . . . . . . . Kick . | . . . . . . . . . . . . . . . . . . . . . . . . . . . Crush . | . . . . . . . . . . . . . . . . . . . . . . . . . . . Escape Stasis 94 | . 1 . . . . 54 . 31 8 . . . . . . . . . . . . . . . . . Rewire 1 | . . . . . . . . . . . . . . . . . . . . . . . 1 . . . Trap 6 | . . . 2 . . 1 2 1 . . . . . . . . . . . . . . . . . . Miscellaneous . | . . . . . . . . . . . . . . . . . . . . . . . . . . . Route ------- -11/Scrapyard -10/Materials (discovered 6 exits: [*Mat x3] / *Min x2 / [*Sub]) -10/Mines -10/Exiles -9/Mines -8/Materials (discovered 4 exits: *Fac x3 / Gar) -8/Garrison (discovered 4 exits: *Mat x4) -8/Materials (discovered 4 exits: *Fac x3 / Gar) -8/Garrison (discovered 3 exits: *Fac x3) -7/Factory -7/Waste -7/Factory (discovered 6 exits: *Fac x4 / *Low x2) -7/Lower Caves (discovered 2 exits: [*Low] / *Zio) -7/Lower Caves -7/Zion -6/Proximity Caves -6/Factory (discovered 3 exits: Fac x2 / *Low) -6/Lower Caves -6/Lower Caves -6/Data Miner -5/Proximity Caves -5/Factory (discovered 5 exits: Fac x3 / *Upp x2) -5/Upper Caves -5/Upper Caves -5/Warlord -4/Proximity Caves -4/Factory (discovered 4 exits: *Res x3 / *Upp) History --------- Turn | Location | Event 15 | -11/Scrapyard | Discovered new exit (range 14) 287 | -11/Scrapyard | Entered Materials 306 | -10/Materials | Build established: Mutant 485 | -10/Materials | Discovered new exit (range 7) 495 | -10/Materials | Prayed at D.C.S.S. Altar Unit 530 | -10/Materials | Discovered new exit (range 13) 609 | -10/Materials | Inventory capacity permanently improved by X0-1V1 (+1; -100 max core) 761 | -10/Materials | Discovered new exit (range 3) 795 | -10/Materials | Core integrity fell below 50% 845 | -10/Materials | Core integrity restored by X0-1V1 (+22) 982 | -10/Materials | X0-1V1 announced a LAN party 991 | -10/Materials | Core integrity restored by X0-1V1 (+36) 1100 | -10/Materials | Discovered new exit (range 14) 1267 | -10/Materials | Discovered new exit (range 4) 1287 | -10/Materials | X0-1V1 activates XOMVISION 1288 | -10/Materials | X0-1V1 vaporized surrounding terrain (radius 20) 1305 | -10/Materials | X0-1V1 foreshadows a heat wave 1311 | -10/Materials | X0-1V1 added 0b10 threat records associated with you (considerable) 1315 | -10/Materials | Identified exit to Mines 1315 | -10/Materials | X0-1V1 revealed exit location to -10/Mines 1365 | -10/Materials | System corruption reached 10% 1400 | -10/Materials | X0-1V1 sent you into danger 1402 | -10/Materials | X0-1V1 sent allied S-10 Pest (x3) 1439 | -10/Materials | X0-1V1 mutated your Weapon slot to Utility slot 1465 | -10/Materials | Ambient heat levels rising (+10) 1488 | -10/Materials | X0-1V1 upgraded hostiles (x2) 1501 | -10/Materials | X0-1V1 whisked you away to safety 1507 | -10/Materials | X0-1V1 mutated your Utility slot to Weapon slot 1516 | -10/Materials | Core integrity restored by X0-1V1 (+43) 1520 | -10/Materials | X0-1V1 activates XOMVISION 1531 | -10/Materials | Weapon slot count temporarily expanded by X0-1V1 (+3) 1561 | -10/Materials | X0-1V1 sent allied G-34 Mercenary (x3) 1572 | -10/Materials | Ambient heat levels rising (+10) 1609 | -10/Materials | X0-1V1 rewrote G-34 Mercenary IFF filter 1670 | -10/Materials | Crushed by falling debris 1708 | -10/Materials | Ambient heat levels falling (-10) 1896 | -10/Materials | Ambient heat levels falling (-10) 1955 | -10/Materials | Build established: Gunner 2112 | -10/Materials | X0-1V1 vaporized surrounding terrain (radius 16) 2137 | -10/Materials | X0-1V1 sent hostile G-34 Mercenary (x3) 2285 | -10/Materials | Build established: Mutant 2299 | -10/Materials | X0-1V1 sent hostile B-36 Bruiser (x4) 2418 | -10/Materials | Core integrity restored by X0-1V1 (+30) 2423 | -10/Materials | X0-1V1 activates XOMVISION 2437 | -10/Materials | X0-1V1 mutated your Utility slot to Propulsion slot 2556 | -10/Materials | Core integrity restored by X0-1V1 (+40) 2557 | -10/Materials | X0-1V1 sent hostile S-10 Pest (x3) 2563 | -10/Materials | Weapon slot count temporarily expanded by X0-1V1 (+4) 2745 | -10/Materials | X0-1V1 activates XOMVISION 2746 | -10/Materials | X0-1V1 added 0b10 threat records associated with you (major) 2755 | -10/Materials | X0-1V1 vaporized surrounding terrain (radius 22) 2783 | -10/Materials | X0-1V1 sent hostile G-34 Mercenary (x5) 2808 | -10/Materials | Core integrity restored by X0-1V1 (+31) 2838 | -10/Materials | Destroyed 7 combat bots 2870 | -10/Materials | Sterilization system engaged 2870 | -10/Materials | Non-combat units ordered to evacuate 2888 | -10/Materials | Core integrity restored by X0-1V1 (+36) 2931 | -10/Materials | Build established: Hauler-Gunner 2970 | -10/Materials | Combat units ordered to evacuate 3145 | -10/Materials | X0-1V1 activates XOMVISION 3170 | -10/Materials | Ambient heat levels rising (+10) 3190 | -10/Materials | Entered Mines 3225 | -10/Mines | X0-1V1 sent allied G-34 Mercenary (x3) 3286 | -10/Mines | Lost 3 allies 3306 | -10/Mines | Core integrity permanently improved by X0-1V1 (+400) 3350 | -10/Mines | Build established: Hauler-Mutant 3351 | -10/Mines | Learned 2 Materials zone layouts 3367 | -10/Mines | X0-1V1 opened Sealed Doors 3375 | -10/Mines | Learned location of Zion (-7) 3377 | -10/Mines | Found the Drone Emporium 3384 | -10/Mines | Found Prototype Device 3401 | -10/Mines | Met a Derelict testing a Signal Generator 3434 | -10/Mines | Deemed a non-threat by the Exiles lab entrance 3434 | -10/Mines | Discovered new exit (range 5) 3439 | -10/Mines | Entered Exiles 3473 | -10/Exiles | Met 8R-AWN 3493 | -10/Exiles | Met EX-HEX 3524 | -10/Exiles | Met EX-BIN 3544 | -10/Exiles | Aligned with FarCom system 3545 | -10/Exiles | Given EX-Vault access code 3572 | -10/Exiles | Opened EX-Vault 3602 | -10/Exiles | Warned to stay clear of 0b10 Research branches 3635 | -10/Exiles | Met EX-DEC 3864 | -10/Exiles | Warned about trapping Exiles lab 3949 | -10/Exiles | Discovered new exit (range 14) 4189 | -10/Exiles | Attacked by the Exiles 4257 | -10/Exiles | Build established: Mutant 4351 | -10/Exiles | Lost 7 parts (3n2u2w) 4370 | -10/Exiles | Destroyed 8R-AWN 4575 | -10/Exiles | Core integrity fell below 20% 4605 | -10/Exiles | Lost 4 parts (1n1u2w) 4698 | -10/Exiles | Entered Mines 4729 | -9/Mines | Met a Derelict bent on vengeance 4803 | -9/Mines | Received a Rocket Launcher from a helpful Derelict 4914 | -9/Mines | Discovered new exit (range 15) 4929 | -9/Mines | Entered Materials 4929 | -8/Materials | Evolved 4 slots: Utility x2, Weapon x2 5216 | -8/Materials | X0-1V1 sent hostile G-47 Trooper (x4) 5268 | -8/Materials | X0-1V1 activates XOMVISION 5386 | -8/Materials | Discovered new exit (range 16) 5411 | -8/Materials | EM resistance permanently improved by X0-1V1 (+20%; -200 max core) 5515 | -8/Materials | Discovered new exit (range 16) 5532 | -8/Materials | Build established: Scavenger-Tank 5684 | -8/Materials | Identified exit to Factory 5684 | -8/Materials | X0-1V1 revealed exit location to -7/Factory 5788 | -8/Materials | X0-1V1 sent you to a vault 5862 | -8/Materials | Garrison activated, responded to threat 5925 | -8/Materials | X0-1V1 activates XOMVISION 6100 | -8/Materials | Build established: Hauler-Tank 6304 | -8/Materials | Identified exit to Garrison 6630 | -8/Materials | Garrison activated, responded to threat 7000 | -8/Materials | X0-1V1 activates XOMVISION 7710 | -8/Materials | Build established: Hauler-Gunner 7729 | -8/Materials | First assault squad dispatched 7776 | -8/Materials | Garrison activated, responded to threat 7861 | -8/Materials | Sterilization system engaged 7861 | -8/Materials | Non-combat units ordered to evacuate 7937 | -8/Materials | Entered Garrison 7971 | -8/Garrison | Triggered checkpoint 8128 | -8/Garrison | Triggered checkpoint 8172 | -8/Garrison | Triggered checkpoint 8196 | -8/Garrison | Triggered checkpoint 8212 | -8/Garrison | X0-1V1 sent allied S-10 Pest (x3) 8242 | -8/Garrison | Build established: Hauler-Tank 8341 | -8/Garrison | Triggered checkpoint 8375 | -8/Garrison | Garrison Relay disabled 8429 | -8/Garrison | Discovered new exit (range 11) 8450 | -8/Garrison | Identified exit to Materials 8450 | -8/Garrison | X0-1V1 revealed exit location to -8/Materials 8511 | -8/Garrison | Triggered checkpoint 8555 | -8/Garrison | Destroyed 7 combat bots 8639 | -8/Garrison | Triggered checkpoint 8686 | -8/Garrison | Discovered exit to Materials (range 55) 8686 | -8/Garrison | Discovered exit to Materials (range 45) 8686 | -8/Garrison | Discovered exit to Materials (range 34) 8686 | -8/Garrison | Discovered exit to Materials (range 17) 8877 | -8/Garrison | X0-1V1 activates XOMVISION 8899 | -8/Garrison | Garrison Relay disabled 8943 | -8/Garrison | Triggered checkpoint 9059 | -8/Garrison | Core integrity restored by X0-1V1 (+169) 9121 | -8/Garrison | Triggered checkpoint 9187 | -8/Garrison | Lost 3 parts (2n1w) 9215 | -8/Garrison | Garrison Relay disabled 9264 | -8/Garrison | Attempted to access garrison exit controls, blocked by remote lockdown 9489 | -8/Garrison | Attempted to access garrison exit controls, blocked by remote lockdown 9706 | -8/Garrison | Entered Materials 9749 | -8/Materials | Garrison activated, responded to threat 9859 | -8/Materials | Garrison activated, responded to threat 9869 | -8/Materials | Met 7R-MNS 9962 | -8/Materials | Discovered exit to Factory (range 4) 10252 | -8/Materials | X0-1V1 activates XOMVISION 10344 | -8/Materials | Identified Decoy Drone Bay 10423 | -8/Materials | Central database locked down 10517 | -8/Materials | X0-1V1 revealed exit location to -7/Factory 10554 | -8/Materials | Discovered exit to Factory (range 15) 10555 | -8/Materials | System corruption reached 10% 10633 | -8/Materials | Build established: Hauler-Gunner 10906 | -8/Materials | First assault squad dispatched 11529 | -8/Materials | X0-1V1 activates XOMVISION 11750 | -8/Materials | Core integrity restored by X0-1V1 (+162) 11788 | -8/Materials | X0-1V1 sent you to a vault 12336 | -8/Materials | Garrison activated, responded to threat 12404 | -8/Materials | Identified exit to Garrison 13178 | -8/Materials | Sterilization system engaged 13178 | -8/Materials | Non-combat units ordered to evacuate 13278 | -8/Materials | Combat units ordered to evacuate 13308 | -8/Materials | Entered Garrison 13308 | -8/Garrison | Accompanied by 2 allies 13322 | -8/Garrison | Core integrity restored by X0-1V1 (+162) 13346 | -8/Garrison | Triggered checkpoint 13367 | -8/Garrison | Garrison Relay disabled 13456 | -8/Garrison | Triggered checkpoint 13474 | -8/Garrison | Triggered checkpoint 13493 | -8/Garrison | Triggered checkpoint 13529 | -8/Garrison | X0-1V1 sent allied Chaos Knight (x1) 13538 | -8/Garrison | Lost 4 parts (1n1u2w) 13659 | -8/Garrison | Found Powered Armor 13661 | -8/Garrison | Found Powered Armor 13664 | -8/Garrison | Found Powered Armor 13666 | -8/Garrison | Found Powered Armor 13668 | -8/Garrison | Found Powered Armor 13705 | -8/Garrison | Discovered exit to Factory (range 14) 13798 | -8/Garrison | Build established: Hauler-Tank 13842 | -8/Garrison | X0-1V1 vaporized surrounding terrain (radius 23) 13842 | -8/Garrison | Triggered checkpoint 13873 | -8/Garrison | Garrison Relay disabled 13904 | -8/Garrison | Garrison Relay disabled 13918 | -8/Garrison | Triggered checkpoint 13949 | -8/Garrison | X0-1V1 activates XOMVISION 13955 | -8/Garrison | Discovered exit to Factory (range 25) 13955 | -8/Garrison | Discovered exit to Factory (range 68) 13955 | -8/Garrison | Discovered exit to Factory (range 71) 13955 | -8/Garrison | System Shield fried by hacking feedback 14574 | -8/Garrison | Garrison Relay disabled 14590 | -8/Garrison | Triggered checkpoint 14641 | -8/Garrison | Entered Factory 14641 | -7/Factory | Evolved 2 slots: Propulsion x1, Weapon x1 14789 | -7/Factory | Discovered new exit (range 17) 15009 | -7/Factory | X0-1V1 enhanced Transport squad support 15072 | -7/Factory | X0-1V1 tapped a No Entrance sign 15338 | -7/Factory | Discovered new exit (range 9) 15344 | -7/Factory | Build established: Scavenger-Tank 15409 | -7/Factory | Identified exit to Factory 15499 | -7/Factory | X0-1V1 upgraded hostiles (x1) 15690 | -7/Factory | X0-1V1 sent you to a vault 15945 | -7/Factory | Garrison activated, responded to threat 16184 | -7/Factory | X0-1V1 mutated your Propulsion slot to Power slot 16241 | -7/Factory | First assault squad dispatched 16268 | -7/Factory | System corruption reached 10% 16275 | -7/Factory | Garrison activated, responded to threat 16509 | -7/Factory | Sucked down chute 16509 | -7/Factory | Entered Waste 16523 | -7/Waste | Spotted C-40 Crusher 16542 | -7/Waste | Spotted C-40 Crusher 16609 | -7/Waste | Destroyed C-40 Crusher 16624 | -7/Waste | Destroyed C-40 Crusher 16665 | -7/Waste | Spotted C-40 Crusher 16710 | -7/Waste | Destroyed C-40 Crusher 16747 | -7/Waste | X0-1V1 activates XOMVISION 16758 | -7/Waste | Spotted C-40 Crusher 16770 | -7/Waste | X0-1V1 sent allied L-31 Rogue (x3) 16785 | -7/Waste | Destroyed C-40 Crusher 16816 | -7/Waste | Lost 3 allies 16819 | -7/Waste | Build established: Hauler-Tank 16845 | -7/Waste | Spotted C-40 Crusher 16873 | -7/Waste | Spotted C-40 Crusher 16917 | -7/Waste | Destroyed C-40 Crusher 16965 | -7/Waste | Discovered new exit (range 7) 16965 | -7/Waste | X0-1V1 whisked you away to safety 17007 | -7/Waste | Warlord forces began an assault 17101 | -7/Waste | Allies destroyed C-40 Crusher 17143 | -7/Waste | Lost 3 allies 17279 | -7/Waste | Entered Factory 17279 | -7/Factory | Accompanied by 16 allies 17487 | -7/Factory | Lost 4 allies 17782 | -7/Factory | X0-1V1 sent you to a vault 18002 | -7/Factory | Hacker 4b assimilated hostile S-27 Virus 18016 | -7/Factory | Discovered new exit (range 9) 18021 | -7/Factory | System corruption reached 30% 18038 | -7/Factory | X0-1V1 downgraded hostiles (x1) 18051 | -7/Factory | Lost 3 allies 18079 | -7/Factory | First assault squad dispatched 18274 | -7/Factory | X0-1V1 announced a LAN party 18570 | -7/Factory | X0-1V1 sent allied Chaos Knight 2.0 (x1) 18579 | -7/Factory | Garrison activated, responded to threat 18730 | -7/Factory | Garrison activated, responded to threat 18799 | -7/Factory | Build established: Scavenger-Gunner 18981 | -7/Factory | X0-1V1 activates XOMVISION 19231 | -7/Factory | Core integrity restored by X0-1V1 (+192) 19246 | -7/Factory | Build established: Hauler-Gunner 19294 | -7/Factory | Discovered exit to Factory (range 9) 19589 | -7/Factory | X0-1V1 revealed exit location to -6/Factory 20595 | -7/Factory | X0-1V1 sent allied Ranger (x3) 20617 | -7/Factory | Destroyed 13 combat bots 20908 | -7/Factory | P-60 Hacker assimilated allied MC-Z3Z(h) 21294 | -7/Factory | High security lockdown imminent 21374 | -7/Factory | High security lockdown engaged 21462 | -7/Factory | Identified exit to Lower Caves 21462 | -7/Factory | X0-1V1 revealed exit location to -7/Lower Caves 21629 | -7/Factory | Destroyed 9 combat bots 21667 | -7/Factory | Lost 7 parts (2n1u4w) 21671 | -7/Factory | Core integrity fell below 50% 21680 | -7/Factory | Garrison activated, responded to threat 21735 | -7/Factory | Lost 8 parts (1p1n2u4w) 21751 | -7/Factory | Destroyed 27 combat bots 21753 | -7/Factory | Sterilization system engaged 21753 | -7/Factory | Non-combat units ordered to evacuate 21773 | -7/Factory | X0-1V1 turns hostiles against one another 21853 | -7/Factory | Combat units ordered to evacuate 21893 | -7/Factory | Lost 5 parts (1p2n2w) 21963 | -7/Factory | X0-1V1 revealed exit location to -6/Factory 22042 | -7/Factory | X0-1V1 revealed exit location to -6/Factory 22053 | -7/Factory | Ambient heat levels rising (+10) 22174 | -7/Factory | Core integrity restored by X0-1V1 (+152) 22203 | -7/Factory | Ambient heat levels rising (+10) 22263 | -7/Factory | Build established: Hauler-Mutant 22353 | -7/Factory | Ambient heat levels rising (+10) 22503 | -7/Factory | Ambient heat levels rising (+10) 22574 | -7/Factory | Entered Lower Caves 22575 | -7/Lower Caves | Encountered a Warlord checkpoint 22581 | -7/Lower Caves | Met a Warlord Commander 22582 | -7/Lower Caves | Learned location of Warlord (-5) 22583 | -7/Lower Caves | Warlord Commander delivered Encrypted Comm Array 22583 | -7/Lower Caves | Found Unknown Device 22584 | -7/Lower Caves | Identified Encrypted Comm Array 22620 | -7/Lower Caves | A Derelict revealed a hidden shortcut to a safe place 22760 | -7/Lower Caves | Build established: Hauler-Gunner 22910 | -7/Lower Caves | Discovered new exit (range 16) 22941 | -7/Lower Caves | Entered another Lower Caves area 23036 | -7/Lower Caves | Discovered new exit (range 9) 23047 | -7/Lower Caves | Entered Zion 23174 | -7/Zion | Discovered new exit (range 15) 23243 | -7/Zion | System corruption cleaned by Quarantine Array 23274 | -7/Zion | Found Unknown Piercing Weapon 23277 | -7/Zion | Identified CR-A16's Pointy Stick 23426 | -7/Zion | Found Prototype Energy Gun 23426 | -7/Zion | Identified Storm Laser 23521 | -7/Zion | Found GAL Module 23594 | -7/Zion | Learned location of 2 exits from Factory 23763 | -7/Zion | Learned location of Extension (-4) 24370 | -7/Zion | Entered Proximity Caves 24575 | -6/Proximity Caves | Spotter reported a threat 24599 | -6/Proximity Caves | Spotted B-75 Beast 24605 | -6/Proximity Caves | X0-1V1 activates XOMVISION 24616 | -6/Proximity Caves | X0-1V1 revealed exit location to -6/Factory 24641 | -6/Proximity Caves | X0-1V1 mutated your Weapon slot to Propulsion slot 24670 | -6/Proximity Caves | Learned Factory garrison access intel 24673 | -6/Proximity Caves | Learned Factory trap positions 24761 | -6/Proximity Caves | Entered Factory 24761 | -6/Factory | Evolved 2 slots: Propulsion x1, Weapon x1 24762 | -6/Factory | Identified exit to Lower Caves 24763 | -6/Factory | Identified exit to Factory 24764 | -6/Factory | Loaded intel: 86 trap records 24765 | -6/Factory | Loaded intel: 4 garrison access locations 24842 | -6/Factory | X0-1V1 sent you to a vault 25080 | -6/Factory | X0-1V1 activates XOMVISION 25364 | -6/Factory | X0-1V1 enhanced Transport squad support 25944 | -6/Factory | Lost 3 parts (1u2w) 26161 | -6/Factory | First assault squad dispatched 26676 | -6/Factory | Entered Lower Caves 26830 | -6/Lower Caves | Learned Factory stockpile data 26949 | -6/Lower Caves | Attracted the attention of an 0b10 outpost 26951 | -6/Lower Caves | Discovered new exit (range 13) 26969 | -6/Lower Caves | Entered another Lower Caves area 27125 | -6/Lower Caves | Encountered a Warlord checkpoint 27147 | -6/Lower Caves | Discovered new exit (range 15) 27166 | -6/Lower Caves | Entered Data Miner 27166 | -6/Data Miner | Discovered new exit (range 6) 27196 | -6/Data Miner | Met Data Miner 27239 | -6/Data Miner | Learned location of Section 7 (-2) 27239 | -6/Data Miner | Acquired the access code to Warlord's prototype stash 27255 | -6/Data Miner | Received God Mode back door access code from Data Miner 27268 | -6/Data Miner | Interfaced with the Data Conduit 27332 | -6/Data Miner | Entered Proximity Caves 27334 | -5/Proximity Caves | Attracted the attention of an 0b10 checkpoint 27364 | -5/Proximity Caves | Lost 7 parts (3n1u3w) 27379 | -5/Proximity Caves | X0-1V1 sent hostile G-50 Soldier (x3) 27420 | -5/Proximity Caves | Lost 3 parts (1n1u1w) 27503 | -5/Proximity Caves | X0-1V1 sent hostile Thug (x2) 27612 | -5/Proximity Caves | Learned Factory emergency access door positions 27790 | -5/Proximity Caves | Discovered exit to Factory (range 7) 27798 | -5/Proximity Caves | Entered Factory 27798 | -5/Factory | Evolved 2 slots: Propulsion x1, Weapon x1 27798 | -5/Factory | X0-1V1 redirected Transport squads to designated parking area 27801 | -5/Factory | Loaded intel: 279 machine locations 27826 | -5/Factory | X0-1V1 vaporized surrounding terrain (radius 17) 28095 | -5/Factory | Garrison activated, responded to threat 28105 | -5/Factory | X0-1V1 activates XOMVISION 28175 | -5/Factory | X0-1V1 sent you to a vault 28204 | -5/Factory | Discovered new exit (range 16) 28315 | -5/Factory | Build established: Scavenger-Executioner 28395 | -5/Factory | Identified exit to Factory 28395 | -5/Factory | X0-1V1 revealed exit location to -4/Factory 28499 | -5/Factory | Intercept squad dispatched 28509 | -5/Factory | Spotted Tracker 28518 | -5/Factory | Destroyed Tracker 28542 | -5/Factory | Spotted Combat Programmer 28550 | -5/Factory | Weapon slot count temporarily expanded by X0-1V1 (+3) 28554 | -5/Factory | X0-1V1 turns hostiles against one another 28554 | -5/Factory | Combat Programmer assimilated hostile W-25 Informer 28557 | -5/Factory | Destroyed Combat Programmer 28594 | -5/Factory | Found Exp. Focal Shield 28632 | -5/Factory | Identified exit to Upper Caves 28752 | -5/Factory | Cargo convoy interrupted 28801 | -5/Factory | Destroyed CP-ERF(g) 29005 | -5/Factory | X0-1V1 revealed exit location to -4/Factory 29326 | -5/Factory | X0-1V1 mutated your Propulsion slot to Utility slot 29841 | -5/Factory | Intercept squad dispatched 29881 | -5/Factory | X0-1V1 revealed exit location to -4/Factory 29887 | -5/Factory | Spotted Tracker 29887 | -5/Factory | Spotted Tracker 29900 | -5/Factory | Destroyed Tracker 29904 | -5/Factory | Destroyed Tracker 29906 | -5/Factory | Spotted Combat Programmer 29921 | -5/Factory | Destroyed Combat Programmer 29924 | -5/Factory | Found Exp. Phase Shifter 29928 | -5/Factory | Spotted Combat Programmer 29932 | -5/Factory | System corruption reached 10% 29933 | -5/Factory | Lost 4 parts (1n3w) 29950 | -5/Factory | Destroyed Combat Programmer 29963 | -5/Factory | Found Prototype Energy Gun 29963 | -5/Factory | Identified Immobilizer 29990 | -5/Factory | Found Prototype Energy Cannon 29990 | -5/Factory | Identified EMDS 30080 | -5/Factory | Entered Upper Caves 30205 | -5/Upper Caves | Identified exit to Upper Caves 30205 | -5/Upper Caves | X0-1V1 revealed exit location to -5/Upper Caves 30312 | -5/Upper Caves | X0-1V1 activates XOMVISION 30354 | -5/Upper Caves | Learned 12 Factory zone layouts 30464 | -5/Upper Caves | Core integrity restored by X0-1V1 (+275) 30494 | -5/Upper Caves | Encountered a Warlord checkpoint 30583 | -5/Upper Caves | Attracted the attention of an 0b10 checkpoint 30585 | -5/Upper Caves | Entered another Upper Caves area 30586 | -5/Upper Caves | Identified exit to Warlord 30912 | -5/Upper Caves | Attracted the attention of an 0b10 outpost 30989 | -5/Upper Caves | Entered Warlord 30989 | -5/Warlord | Accompanied by 1 ally 31152 | -5/Warlord | Visited the Vortex Lab 31159 | -5/Warlord | Found Prototype Energy Gun 31159 | -5/Warlord | Identified Vortex Rifle 31166 | -5/Warlord | Warlord's base attacked by MAIN.C 31167 | -5/Warlord | Found Prototype Piercing Weapon 31167 | -5/Warlord | Identified Vortex Lance 31173 | -5/Warlord | Found Vortex Lance 31221 | -5/Warlord | Found Prototype Special Weapon 31221 | -5/Warlord | Identified RU-N14's Throwing Claymores v3 31226 | -5/Warlord | Found RU-N14's Throwing Claymores v3 31229 | -5/Warlord | Found RU-N14's Throwing Claymores v3 31231 | -5/Warlord | Found RU-N14's Throwing Claymores v3 31235 | -5/Warlord | Found RU-N14's Throwing Claymores v3 31260 | -5/Warlord | Build established: Hauler-Executioner 31296 | -5/Warlord | X0-1V1 activates XOMVISION 31443 | -5/Warlord | Found Prototype Hackware 31516 | -5/Warlord | Warlord forces counterattacked 31535 | -5/Warlord | Spotted Striker 31543 | -5/Warlord | Spotted Executioner 31554 | -5/Warlord | Destroyed Executioner 31578 | -5/Warlord | Found Prototype Ballistic Cannon 31578 | -5/Warlord | Identified Hvy. Autocannon 31609 | -5/Warlord | Spotted B-86 Titan 31648 | -5/Warlord | Lost 10 allies 31700 | -5/Warlord | Met Warlord 31774 | -5/Warlord | Spotted Executioner 31776 | -5/Warlord | Spotted Executioner 31779 | -5/Warlord | Destroyed Executioner 31785 | -5/Warlord | Destroyed Executioner 31841 | -5/Warlord | Warlord base infiltrated, sounded retreat 31866 | -5/Warlord | Build established: Scavenger-Executioner 31883 | -5/Warlord | Found Hvy. Autocannon 31932 | -5/Warlord | Spotted Striker 31965 | -5/Warlord | Lost 6 allies 31975 | -5/Warlord | Spotted Executioner 31978 | -5/Warlord | Discovered new exit (range 14) 32000 | -5/Warlord | Entered Proximity Caves 32040 | -4/Proximity Caves | Spotted B-86 Titan 32049 | -4/Proximity Caves | Destroyed B-86 Titan 32169 | -4/Proximity Caves | X0-1V1 sent hostile Guerrilla (x2) 32177 | -4/Proximity Caves | Build established: Hauler-Executioner 32306 | -4/Proximity Caves | Learned Research terminal intel 32361 | -4/Proximity Caves | Discovered exit to Factory (range 13) 32379 | -4/Proximity Caves | Entered Factory 32379 | -4/Factory | Evolved 2 slots: Propulsion x2 32380 | -4/Factory | Identified exit to Research 32381 | -4/Factory | Loaded intel: 251 machine locations 32608 | -4/Factory | Discovered new exit (range 14) 32624 | -4/Factory | Identified exit to Upper Caves 32629 | -4/Factory | Discovered exit to Research (range 10) 32731 | -4/Factory | Build established: Scavenger-Executioner 32748 | -4/Factory | X0-1V1 sent you to a vault 32766 | -4/Factory | X0-1V1 revealed exit location to -3/Research 32866 | -4/Factory | Found Prototype Processor 32866 | -4/Factory | Identified Exp. Signal Interpreter 32907 | -4/Factory | Garrison activated, responded to threat 33062 | -4/Factory | Lost 4 parts (1p2n1w) 33129 | -4/Factory | First assault squad dispatched 33158 | -4/Factory | X0-1V1 redirected Transport squads to designated parking area 33287 | -4/Factory | Identified Ghost Barrier 33310 | -4/Factory | X0-1V1 sent allied H-66 Slayer (x2) 33330 | -4/Factory | Lost 4 parts (1p1n2w) 33332 | -4/Factory | Weapon slot count temporarily expanded by X0-1V1 (+2) 33504 | -4/Factory | X0-1V1 mutated your Propulsion slot to Weapon slot 33680 | -4/Factory | Lost 3 parts (1p2n) 33722 | -4/Factory | System corruption reached 10% 33727 | -4/Factory | Cargo convoy interrupted 33741 | -4/Factory | X0-1V1 downgraded hostiles (x1) 33751 | -4/Factory | X0-1V1 enhanced Transport squad support 33763 | -4/Factory | Destroyed 11 combat bots 33763 | -4/Factory | Lost 7 parts (3n4w) 33775 | -4/Factory | Spotted B-86 Titan 33792 | -4/Factory | Intercept squad dispatched 33801 | -4/Factory | Spotted Tracker 33815 | -4/Factory | Lost 5 parts (1p1n3w) 33819 | -4/Factory | Weapon slot count temporarily expanded by X0-1V1 (+2) 33825 | -4/Factory | Spotted Combat Programmer 33841 | -4/Factory | Destroyed Combat Programmer 33910 | -4/Factory | X0-1V1 mutated your Utility slot to Weapon slot 33965 | -4/Factory | Spotted B-86 Titan 34025 | -4/Factory | Build established: Scavenger-Gunner 34089 | -4/Factory | X0-1V1 upgraded hostiles (x3) 34093 | -4/Factory | Core integrity fell below 50% 34098 | -4/Factory | X0-1V1 whisked you away to safety 34129 | -4/Factory | Core integrity fell below 20% 34152 | -4/Factory | Lost 14 parts (1p7n1u5w) 34181 | -4/Factory | X0-1V1 sent you into danger 34184 | -4/Factory | X0-1V1 sent allied Mutant (x2) 34189 | -4/Factory | Destroyed self via exploding Nuclear Reactor Last Messages --------------- 9A-P1F(M) form resolidifies at new position. 34184_ 9A-P1F(M) destroyed. 34185_ 0J-AGG(M): "Wait, where is this?" 34189_ Exp. Focal Shield destroyed. 34189_ Nuclear Reactor explodes. 34189_ Destroyed VTOL Module. 34189_ S-27 Virus destroyed. 34189_ Phasing Sabre destroyed. 34189_ X0-1V1 is interested. 34189_ Destroyed Phasing Sabre. 34189_ Nuclear Reactor explodes. 34189_ S-27 Virus destroyed. 34189_ Nuclear Reactor explodes. 34189_ Destroyed Riot Gun. 34189_ S-27 Virus destroyed. 34189_ Destroyed VTOL Module. 34189_ S-27 Virus destroyed. 34189_ IFF Parser destroyed. 34189_ Destroyed IFF Parser. 34189_ X0-1V1 laughs nastily! Map ----- +----------------------------------------------------+ | ?????????????????????????????????????????????????? | | ?????????????????????????????????????????????????? | | ?????????????????????????????????????????????????? | | ?????????????????????????????????????????????????? | | ?????????????????????????????????????????????????? | | ?????????????????????????????????????????????????? | | ?????????????????????????????????????????????????? | | ?????????????????????????????????????????????????? | | ?????????????????????????????????????????????????? | | ?????????????????????????????????????????????????? | | ?????????????????????????????????????????????????? | | ?????????????????????????????????????????????????? | | ???????????????????????????""""??????????????????? | | ???????????????????""?""???""""???"""""??????????? | | ???????????????????""S""???""""???"""""?""???????? | | ???????????????????""""????""""???"""???""T"""???? | | ?????????????????????????????????????????"""""???? | | ???????????????##########+##########???+##???????? | | ???????????????? ???? ######?# | | ????????????????? ?????? #?# | | ??????????????""? *s ????? #?# | | ??????????????"T? """ """ """?""" """ #?# | | ??????????????"" """ """ """?""" """ #?# | | ???????????????# """ [ """ """ """ """ #?# | | ?############### * ### | | ?# """ @ """ """ """ """ + | | ?# """ """ """?""" """ = # | | ?# """ """ """ """ """ + | | ?# M # | | ?# # | | ?# ################ ##"""T"""######### # | | ## #??????????????# ###############??# # | | #??????????????# # #??# # | | #??????????????# # #??# # | | #??????????????# # #??# # | | #?????????""""?# + """ """ ####+#+# | | #?????????""""?# # """"" """"" # | | ########?????????""""?# # """"" """"" # | | #????????????""""?#% ############### =[ | | #?????????????????# #??????# [! ] | | #????????????""""?? % ######## [! | | #????????????""""??? | + | | #????????????""""??? ##### == | | """ #????????????""""??? """" #???# %! | | """ #??"""?"""?????????? """" #???# = | | """ #??"""?"""?????????? """" ########"""# | | """ #??"""?"""?????????? """" | | """?#??????????????????? """" | | """????"""?"""?????????? """" | | ???????"""?"""?????????? | +----------------------------------------------------+ Best States ------------- Heat Dissipation 180 Energy Generation 37 Energy Capacity 1680 Matter Stores 1000 Matter Capacity 1000 Sight Range 22 Terrain Scan Density 10 Armor Coverage 600 Resistance: KI 30 Resistance: EM 45 Core Shielding 20 Utility Shielding 33 Evasion (%) 50 Launcher Accuracy 30 Core Analysis 6 Recoil Reduction 3 Salvage Targeting 3 Offensive Hacking 10 Defensive Hacking 20 Item Schematics ----------------- Adv. Weapon Cycler | -8/Materials | Scanalyzed Exp. Heat Sink | -8/Materials | Scanalyzed Hvy. Shock Bomb Launcher | -7/Factory | Scanalyzed Battle Cannon | -7/Zion | Free Beamcaster | -7/Zion | Free Ripper | -7/Zion | Free Combat Drone Bay | -6/Data Miner | Free Lgt. Regenerative Plating | -6/Data Miner | Free Enh. Flexi-carbon Leg | -6/Data Miner | Free Imp. Matter Compressor | -6/Data Miner | Free Cld. Plasma Rifle | -6/Data Miner | Free Impulse Thruster | -6/Data Miner | Free Quantum Capacitor | -6/Data Miner | Free Hardcell Cannon | -6/Data Miner | Free Robot Schematics ------------------ H-66 Slayer | -6/Data Miner | Free L-41 Fighter | -6/Data Miner | Free S-27 Virus | -6/Data Miner | Free Y-64 Sentinel | -6/Data Miner | Free Fabricated ------------ Nothing Repaired ---------- Nothing Studied --------- Wheel | -8/Materials | Hacked Com. Wheel | -8/Materials | Hacked Gauss Rifle | -7/Factory | Hacked Flak Gun | -7/Factory | Hacked Hvy. Missile Launcher | -7/Factory | Hacked Minigun | -7/Factory | Hacked Arm. Huge Wheel | -6/Factory | Hacked Proton Missile Launcher | -6/Factory | Hacked Lrn. Missile Launcher | -6/Factory | Hacked Railgun | -4/Factory | Hacked KE Penetrator | -4/Factory | Hacked Alien Tech Used ----------------- None Achievements -------------- Freedom! Into The Furnace Scorched Earth Challenges ------------ None Game ------ Seed OpticalParticleMatter Manual? 0 Play Time 05:36:17 Cumulative 269.7 hours Start 2026.07.08 @ 14:54:05 End 2026.07.08 @ 22:38:55 Sessions 1 Manual Loads 0 Difficulty Rogue Special Mode None Game No. 123 Rogue 123 Adventurer 0 Explorer 0 Win Type - Total 16 Types 12/1/1/1/0/0/0/0/0/1 Lore% 76 Gallery% 73 Achievement% 72 Wizard Run 0 Options --------- Layout 0 ASCII 0 Keyboard 1 Movement Arrows Keybinds 0 Fullscreen 2 Font 18/SmallcapsGlow Map View 76x50 Zoom Use 0% Tactical HUD 1 Map Filters NONE Filters NONE Steam 1 RUN: dc8d8938-13b5-4cc8-9fd9-320df584a2a4